Workbook

Sheet Intervention description
A1: Intervention description
A2: Change the names of the scenarios in cells A4 to A9 as required
A3: Scenario name | B3: Scenario description
A4: 20% tax total pop | B4: 20% tax
A11: Scenario for analysis | T11: Controls | V11: 1 | X11: Change in BMI. | AB11: Scenarios | AD11: 1
X12: Change in Weight.
U13: 1 | V13: BMI (kg/m2) | AC13: 1 | AD13: =A4 -> 20% tax total pop
U14: 2 | V14: Weight (kg) | AC14: 2 | AD14: =A5 -> 0
A15: Intervention Major Assumptions | AC15: 3 | AD15: =A6 -> 0
AC16: 4 | AD16: =A7 -> 0
A17: Benfits of Intervention | AC17: 5 | AD17: =A8 -> 0

Sheet Calc-benefits Aus Pop
A1: Whole of population calculation of effect size using direct and indirect effects (own and cross price elasticities)
A2: Consumption SSBs | B2: Consumption of SSB | C2: Males 2-9 | D2: 10-14 yrs | E2: 15-19 | F2: 20-24 | G2: 25-34 | H2: 35-44 | I2: 45-54 | J2: 55-64 | K2: 65-74 | L2: 75+ | M2: Females 2-9 | N2: 10-14 yrs | O2: 15-19 | P2: 20-24 | Q2: 25-34 | R2: 35-44 | S2: 45-54 | T2: 55-64 | U2: 65-74 | V2: 75+
B3: Mean intake carbonated drinks (g/day) | C3: 41.9 | D3: 143.3 | E3: 293.6 | F3: 201.7 | G3: 219.2 | H3: 131.9 | I3: 125.9 | J3: 85.9 | K3: 44.7 | L3: 35.7 | M3: 45.6 | N3: 120.3 | O3: 155.0 | P3: 118.0 | Q3: 91.42 | R3: 74.20 | S3: 67.47 | T3: 38.37 | U3: 34.56 | V3: 29.18
B4: Relative standard error of estimate (%) | C4: 5.1 | D4: 16.7 | E4: 31.9 | F4: 24.2 | G4: 22.1 | H4: 10.0 | I4: 12.2 | J4: 10.2 | K4: 6.6 | L4: 7.1 | M4: 5.4 | N4: 14.0 | O4: 18.8 | P4: 14.8 | Q4: 8.14 | R4: 8.69 | S4: 10.39 | T4: 5.08 | U4: 6.26 | V4: 4.87
B5: Lower 95% confidence interval of the mean | C5: 31.8 | D5: 109.9 | E5: 229.8 | F5: 153.2 | G5: 174.9 | H5: 111.9 | I5: 101.4 | J5: 65.4 | K5: 31.4 | L5: 21.4 | M5: 34.8 | N5: 92.3 | O5: 117.3 | P5: 88.4 | Q5: 75.13 | R5: 56.81 | S5: 46.69 | T5: 28.21 | U5: 22.04 | V5: 19.44
B6: Upper 95% confidence interval of the mean | C6: 52.1 | D6: 176.8 | E6: 357.4 | F6: 250.1 | G6: 263.5 | H6: 152.0 | I6: 150.4 | J6: 106.3 | K6: 58.0 | L6: 49.9 | M6: 56.3 | N6: 148.2 | O6: 192.7 | P6: 147.6 | Q6: 107.71 | R6: 91.58 | S6: 88.25 | T6: 48.52 | U6: 47.08 | V6: 38.93
B7: Ersatz | C7: =_xll.ErLognormal(C3,C4) -> 41.9 | D7: =_xll.ErLognormal(D3,D4) -> 143.3 | E7: =_xll.ErLognormal(E3,E4) -> 293.6 | F7: =_xll.ErLognormal(F3,F4) -> 201.7 | G7: =_xll.ErLognormal(G3,G4) -> 219.2 | H7: =_xll.ErLognormal(H3,H4) -> 131.9 | I7: =_xll.ErLognormal(I3,I4) -> 125.9 | J7: =_xll.ErLognormal(J3,J4) -> 85.9 | K7: =_xll.ErLognormal(K3,K4) -> 44.7 | L7: =_xll.ErLognormal(L3,L4) -> 35.7 | M7: =_xll.ErLognormal(M3,M4) -> 45.6 | N7: =_xll.ErLognormal(N3,N4) -> 120.3 | O7: =_xll.ErLognormal(O3,O4) -> 155.0 | P7: =_xll.ErLognormal(P3,P4) -> 118.0 | Q7: =_xll.ErLognormal(Q3,Q4) -> 91.42 | R7: =_xll.ErLognormal(R3,R4) -> 74.20 | S7: =_xll.ErLognormal(S3,S4) -> 67.47 | T7: =_xll.ErLognormal(T3,T4) -> 38.37 | U7: =_xll.ErLognormal(U3,U4) -> 34.56 | V7: =_xll.ErLognormal(V3,V4) -> 29.18
B9: Mean intake sports drinks (g/day) | C9: 12.0 | D9: 12.0 | E9: 12.0 | F9: 12.0 | G9: 12.0 | H9: 12.0 | I9: 12.0 | J9: 12.0 | K9: 12.0 | L9: 12.0 | M9: 3.4 | N9: 3.4 | O9: 3.4 | P9: 3.4 | Q9: 3.40 | R9: 3.40 | S9: 3.40 | T9: 3.40 | U9: 3.40 | V9: 3.40
B10: Relative standard error of estimate (%) | C10: 1.4 | D10: 1.4 | E10: 1.4 | F10: 1.4 | G10: 1.4 | H10: 1.4 | I10: 1.4 | J10: 1.4 | K10: 1.4 | L10: 1.4 | M10: 0.7 | N10: 0.7 | O10: 0.7 | P10: 0.7 | Q10: 0.74 | R10: 0.74 | S10: 0.74 | T10: 0.74 | U10: 0.74 | V10: 0.74
B11: Lower 95% confidence interval of the mean | C11: 9.2 | D11: 9.2 | E11: 9.2 | F11: 9.2 | G11: 9.2 | H11: 9.2 | I11: 9.2 | J11: 9.2 | K11: 9.2 | L11: 9.2 | M11: 1.9 | N11: 1.9 | O11: 1.9 | P11: 1.9 | Q11: 1.92 | R11: 1.92 | S11: 1.92 | T11: 1.92 | U11: 1.92 | V11: 1.92
B12: Upper 95% confidence interval of the mean | C12: 14.8 | D12: 14.8 | E12: 14.8 | F12: 14.8 | G12: 14.8 | H12: 14.8 | I12: 14.8 | J12: 14.8 | K12: 14.8 | L12: 14.8 | M12: 4.9 | N12: 4.9 | O12: 4.9 | P12: 4.9 | Q12: 4.88 | R12: 4.88 | S12: 4.88 | T12: 4.88 | U12: 4.88 | V12: 4.88
B13: Ersatz | C13: =_xll.ErLognormal(C9,C10) -> 12.0 | D13: =_xll.ErLognormal(D9,D10) -> 12.0 | E13: =_xll.ErLognormal(E9,E10) -> 12.0 | F13: =_xll.ErLognormal(F9,F10) -> 12.0 | G13: =_xll.ErLognormal(G9,G10) -> 12.0 | H13: =_xll.ErLognormal(H9,H10) -> 12.0 | I13: =_xll.ErLognormal(I9,I10) -> 12.0 | J13: =_xll.ErLognormal(J9,J10) -> 12.0 | K13: =_xll.ErLognormal(K9,K10) -> 12.0 | L13: =_xll.ErLognormal(L9,L10) -> 12.0 | M13: =_xll.ErLognormal(M9,M10) -> 3.4 | N13: =_xll.ErLognormal(N9,N10) -> 3.4 | O13: =_xll.ErLognormal(O9,O10) -> 3.4 | P13: =_xll.ErLognormal(P9,P10) -> 3.4 | Q13: =_xll.ErLognormal(Q9,Q10) -> 3.40 | R13: =_xll.ErLognormal(R9,R10) -> 3.40 | S13: =_xll.ErLognormal(S9,S10) -> 3.40 | T13: =_xll.ErLognormal(T9,T10) -> 3.40 | U13: =_xll.ErLognormal(U9,U10) -> 3.40 | V13: =_xll.ErLognormal(V9,V10) -> 3.40
B15: Mean intake energy drinks (g/day) | C15: 7.3 | D15: 7.3 | E15: 7.3 | F15: 7.3 | G15: 7.3 | H15: 7.3 | I15: 7.3 | J15: 7.3 | K15: 7.3 | L15: 7.3 | M15: 2.0 | N15: 2.0 | O15: 2.0 | P15: 2.0 | Q15: 2.00 | R15: 2.00 | S15: 2.00 | T15: 2.00 | U15: 2.00 | V15: 2.00
B16: Relative standard error of estimate (%) | C16: 1.0 | D16: 1.0 | E16: 1.0 | F16: 1.0 | G16: 1.0 | H16: 1.0 | I16: 1.0 | J16: 1.0 | K16: 1.0 | L16: 1.0 | M16: 0.4 | N16: 0.4 | O16: 0.4 | P16: 0.4 | Q16: 0.42 | R16: 0.42 | S16: 0.42 | T16: 0.42 | U16: 0.42 | V16: 0.42
B17: Lower 95% confidence interval of the mean | C17: 5.4 | D17: 5.4 | E17: 5.4 | F17: 5.4 | G17: 5.4 | H17: 5.4 | I17: 5.4 | J17: 5.4 | K17: 5.4 | L17: 5.4 | M17: 1.1 | N17: 1.1 | O17: 1.1 | P17: 1.1 | Q17: 1.15 | R17: 1.15 | S17: 1.15 | T17: 1.15 | U17: 1.15 | V17: 1.15
B18: Upper 95% confidence interval of the mean | C18: 9.2 | D18: 9.2 | E18: 9.2 | F18: 9.2 | G18: 9.2 | H18: 9.2 | I18: 9.2 | J18: 9.2 | K18: 9.2 | L18: 9.2 | M18: 2.8 | N18: 2.8 | O18: 2.8 | P18: 2.8 | Q18: 2.84 | R18: 2.84 | S18: 2.84 | T18: 2.84 | U18: 2.84 | V18: 2.84
B19: Ersatz | C19: =_xll.ErLognormal(C15,C16) -> 7.3 | D19: =_xll.ErLognormal(D15,D16) -> 7.3 | E19: =_xll.ErLognormal(E15,E16) -> 7.3 | F19: =_xll.ErLognormal(F15,F16) -> 7.3 | G19: =_xll.ErLognormal(G15,G16) -> 7.3 | H19: =_xll.ErLognormal(H15,H16) -> 7.3 | I19: =_xll.ErLognormal(I15,I16) -> 7.3 | J19: =_xll.ErLognormal(J15,J16) -> 7.3 | K19: =_xll.ErLognormal(K15,K16) -> 7.3 | L19: =_xll.ErLognormal(L15,L16) -> 7.3 | M19: =_xll.ErLognormal(M15,M16) -> 2.0 | N19: =_xll.ErLognormal(N15,N16) -> 2.0 | O19: =_xll.ErLognormal(O15,O16) -> 2.0 | P19: =_xll.ErLognormal(P15,P16) -> 2.0 | Q19: =_xll.ErLognormal(Q15,Q16) -> 2.00 | R19: =_xll.ErLognormal(R15,R16) -> 2.00 | S19: =_xll.ErLognormal(S15,S16) -> 2.00 | T19: =_xll.ErLognormal(T15,T16) -> 2.00 | U19: =_xll.ErLognormal(U15,U16) -> 2.00 | V19: =_xll.ErLognormal(V15,V16) -> 2.00
B21: Mean intake fruit drink (g/day) | C21: 59.9 | D21: 56.2 | E21: 47.0 | F21: 91.6 | G21: 48.8 | H21: 42.7 | I21: 20.6 | J21: 25.3 | K21: 19.2 | L21: 19.9 | M21: 59.3 | N21: 57.6 | O21: 44.2 | P21: 53.8 | Q21: 36.63 | R21: 18.63 | S21: 11.07 | T21: 22.42 | U21: 23.77 | V21: 30.40
B22: Relative standard error of estimate (%) | C22: 8.9 | D22: 13.5 | E22: 10.4 | F22: 22.7 | G22: 8.1 | H22: 7.7 | I22: 3.3 | J22: 5.2 | K22: 3.9 | L22: 4.6 | M22: 6.9 | N22: 11.0 | O22: 7.9 | P22: 11.0 | Q22: 4.80 | R22: 3.42 | S22: 2.41 | T22: 5.41 | U22: 4.22 | V22: 11.24
B23: Lower 95% confidence interval of the mean | C23: 42.1 | D23: 29.1 | E23: 26.1 | F23: 46.1 | G23: 32.5 | H23: 27.2 | I23: 14.0 | J23: 14.8 | K23: 11.3 | L23: 10.7 | M23: 45.5 | N23: 35.6 | O23: 28.3 | P23: 31.7 | Q23: 27.04 | R23: 11.78 | S23: 6.26 | T23: 11.59 | U23: 15.33 | V23: 7.91
B24: Upper 95% confidence interval of the mean | C24: 77.7 | D24: 83.3 | E24: 67.9 | F24: 137.0 | G24: 65.1 | H24: 58.1 | I24: 27.2 | J24: 35.8 | K24: 27.0 | L24: 29.0 | M24: 73.0 | N24: 79.7 | O24: 60.0 | P24: 75.9 | Q24: 46.23 | R24: 25.47 | S24: 15.89 | T24: 33.24 | U24: 32.20 | V24: 52.90
B25: Ersatz | C25: =_xll.ErLognormal(C21,C22) -> 59.9 | D25: =_xll.ErLognormal(D21,D22) -> 56.2 | E25: =_xll.ErLognormal(E21,E22) -> 47.0 | F25: =_xll.ErLognormal(F21,F22) -> 91.6 | G25: =_xll.ErLognormal(G21,G22) -> 48.8 | H25: =_xll.ErLognormal(H21,H22) -> 42.7 | I25: =_xll.ErLognormal(I21,I22) -> 20.6 | J25: =_xll.ErLognormal(J21,J22) -> 25.3 | K25: =_xll.ErLognormal(K21,K22) -> 19.2 | L25: =_xll.ErLognormal(L21,L22) -> 19.9 | M25: =_xll.ErLognormal(M21,M22) -> 59.3 | N25: =_xll.ErLognormal(N21,N22) -> 57.6 | O25: =_xll.ErLognormal(O21,O22) -> 44.2 | P25: =_xll.ErLognormal(P21,P22) -> 53.8 | Q25: =_xll.ErLognormal(Q21,Q22) -> 36.63 | R25: =_xll.ErLognormal(R21,R22) -> 18.63 | S25: =_xll.ErLognormal(S21,S22) -> 11.07 | T25: =_xll.ErLognormal(T21,T22) -> 22.42 | U25: =_xll.ErLognormal(U21,U22) -> 23.77 | V25: =_xll.ErLognormal(V21,V22) -> 30.40
B27: Mean intake cordial diluted (g/day) | C27: 51.8 | D27: 76.0 | E27: 40.2 | F27: 55.9 | G27: 42.3 | H27: 41.4 | I27: 55.0 | J27: 12.4 | K27: 16.7 | L27: 30.6 | M27: 36.9 | N27: 34.0 | O27: 31.9 | P27: 17.4 | Q27: 29.82 | R27: 21.81 | S27: 13.72 | T27: 15.86 | U27: 14.27 | V27: 5.23
B28: Relative standard error of estimate (%) | C28: 8.2 | D28: 15.1 | E28: 9.2 | F28: 18.5 | G28: 11.5 | H28: 9.6 | I28: 12.5 | J28: 2.9 | K28: 4.4 | L28: 8.7 | M28: 6.8 | N28: 8.4 | O28: 11.8 | P28: 4.9 | Q28: 5.74 | R28: 3.97 | S28: 2.79 | T28: 4.19 | U28: 4.11 | V28: 1.57
B29: Lower 95% confidence interval of the mean | C29: 35.4 | D29: 45.7 | E29: 21.8 | F29: 18.9 | G29: 19.3 | H29: 22.2 | I29: 30.1 | J29: 6.6 | K29: 8.0 | L29: 13.3 | M29: 23.4 | N29: 17.2 | O29: 8.3 | P29: 7.5 | Q29: 18.34 | R29: 13.87 | S29: 8.13 | T29: 7.46 | U29: 6.05 | V29: 2.10
B30: Upper 95% confidence interval of the mean | C30: 68.2 | D30: 106.3 | E30: 58.6 | F30: 92.9 | G30: 65.3 | H30: 60.6 | I30: 80.0 | J30: 18.3 | K30: 25.4 | L30: 48.0 | M30: 50.4 | N30: 50.7 | O30: 55.4 | P30: 27.2 | Q30: 41.31 | R30: 29.74 | S30: 19.31 | T30: 24.25 | U30: 22.49 | V30: 8.37
B31: Ersatz | C31: =_xll.ErLognormal(C27,C28) -> 51.8 | D31: =_xll.ErLognormal(D27,D28) -> 76.0 | E31: =_xll.ErLognormal(E27,E28) -> 40.2 | F31: =_xll.ErLognormal(F27,F28) -> 55.9 | G31: =_xll.ErLognormal(G27,G28) -> 42.3 | H31: =_xll.ErLognormal(H27,H28) -> 41.4 | I31: =_xll.ErLognormal(I27,I28) -> 55.0 | J31: =_xll.ErLognormal(J27,J28) -> 12.4 | K31: =_xll.ErLognormal(K27,K28) -> 16.7 | L31: =_xll.ErLognormal(L27,L28) -> 30.6 | M31: =_xll.ErLognormal(M27,M28) -> 36.9 | N31: =_xll.ErLognormal(N27,N28) -> 34.0 | O31: =_xll.ErLognormal(O27,O28) -> 31.9 | P31: =_xll.ErLognormal(P27,P28) -> 17.4 | Q31: =_xll.ErLognormal(Q27,Q28) -> 29.82 | R31: =_xll.ErLognormal(R27,R28) -> 21.81 | S31: =_xll.ErLognormal(S27,S28) -> 13.72 | T31: =_xll.ErLognormal(T27,T28) -> 15.86 | U31: =_xll.ErLognormal(U27,U28) -> 14.27 | V31: =_xll.ErLognormal(V27,V28) -> 5.23
C32: base ml males 2-9 | D32: base ml male 10-14 yrs | E32: base ml male 15-19 | F32: base ml male 20-24 | G32: base ml male 25-34 | H32: base ml male 35-44 | I32: base ml male 45-54 | J32: base ml male 55-64 | K32: base ml male 65-74 | L32: base ml male 75+ | M32: Base ml Female 2-9 | N32: Base ml Female 10-14 yrs | O32: Base ml Female 15-19 | P32: Base ml Female 20-24 | Q32: Base ml Female 25-34 | R32: Base ml Female 35-44 | S32: Base ml Female 45-54 | T32: Base ml Female 55-64 | U32: Base ml Female 65-74 | V32: Base ml Female 75+
B33: baseline consumption total | C33: =C7+C13+C19+C25+C31 -> 173.0 | D33: =D7+D13+D19+D25+D31 -> 294.8 | E33: 400.1 | F33: 368.4 | G33: 329.6 | H33: 235.3 | I33: 220.8 | J33: 142.9 | K33: 99.9 | L33: 105.5 | M33: 147.1 | N33: 217.3 | O33: 236.5 | P33: 194.6 | Q33: 163.28 | R33: 120.03 | S33: 97.66 | T33: 82.04 | U33: 77.99 | V33: 70.22
B34: Ersatz baseline consumption total | C34: =_xll.ErRunOutput(C32,C33) -> 173.0 | D34: =_xll.ErRunOutput(D32,D33) -> 294.8 | E34: =_xll.ErRunOutput(E32,E33) -> 400.1 | F34: =_xll.ErRunOutput(F32,F33) -> 368.4 | G34: =_xll.ErRunOutput(G32,G33) -> 329.6 | H34: =_xll.ErRunOutput(H32,H33) -> 235.3 | I34: =_xll.ErRunOutput(I32,I33) -> 220.8 | J34: =_xll.ErRunOutput(J32,J33) -> 142.9 | K34: =_xll.ErRunOutput(K32,K33) -> 99.9 | L34: =_xll.ErRunOutput(L32,L33) -> 105.5 | M34: =_xll.ErRunOutput(M32,M33) -> 147.1 | N34: =_xll.ErRunOutput(N32,N33) -> 217.3 | O34: =_xll.ErRunOutput(O32,O33) -> 236.5 | P34: =_xll.ErRunOutput(P32,P33) -> 194.6 | Q34: =_xll.ErRunOutput(Q32,Q33) -> 163.28 | R34: =_xll.ErRunOutput(R32,R33) -> 120.03 | S34: =_xll.ErRunOutput(S32,S33) -> 97.66 | T34: =_xll.ErRunOutput(T32,T33) -> 82.04 | U34: =_xll.ErRunOutput(U32,U33) -> 77.99 | V34: =_xll.ErRunOutput(V32,V33) -> 70.22
A36: Consumption of substitutes | B36: Consumption of substitutes
B37: Mean intake fruit juice (g/day) | C37: 55.6 | D37: 55.6 | E37: 55.6 | F37: 55.6 | G37: 55.6 | H37: 55.6 | I37: 55.6 | J37: 55.6 | K37: 55.6 | L37: 55.6 | M37: 44.8 | N37: 44.8 | O37: 44.8 | P37: 44.8 | Q37: 44.81085 | R37: 44.81085 | S37: 44.81085 | T37: 44.81085 | U37: 44.81085 | V37: 44.81085
B38: Relative standard error of estimate (%) | C38: 2.8 | D38: 2.8 | E38: 2.8 | F38: 2.8 | G38: 2.8 | H38: 2.8 | I38: 2.8 | J38: 2.8 | K38: 2.8 | L38: 2.8 | M38: 2.1 | N38: 2.1 | O38: 2.1 | P38: 2.1 | Q38: 2.08599 | R38: 2.08599 | S38: 2.08599 | T38: 2.08599 | U38: 2.08599 | V38: 2.08599
B39: Lower 95% confidence interval of the mean | C39: 50.1 | D39: 50.1 | E39: 50.1 | F39: 50.1 | G39: 50.1 | H39: 50.1 | I39: 50.1 | J39: 50.1 | K39: 50.1 | L39: 50.1 | M39: 40.6 | N39: 40.6 | O39: 40.6 | P39: 40.6 | Q39: 40.63679 | R39: 40.63679 | S39: 40.63679 | T39: 40.63679 | U39: 40.63679 | V39: 40.63679
B40: Upper 95% confidence interval of the mean | C40: 61.2 | D40: 61.2 | E40: 61.2 | F40: 61.2 | G40: 61.2 | H40: 61.2 | I40: 61.2 | J40: 61.2 | K40: 61.2 | L40: 61.2 | M40: 49.0 | N40: 49.0 | O40: 49.0 | P40: 49.0 | Q40: 48.9849 | R40: 48.9849 | S40: 48.9849 | T40: 48.9849 | U40: 48.9849 | V40: 48.9849
B41: Ersatz | C41: =_xll.ErLognormal(C37,C38) -> 55.6 | D41: =_xll.ErLognormal(D37,D38) -> 55.6 | E41: =_xll.ErLognormal(E37,E38) -> 55.6 | F41: =_xll.ErLognormal(F37,F38) -> 55.6 | G41: =_xll.ErLognormal(G37,G38) -> 55.6 | H41: =_xll.ErLognormal(H37,H38) -> 55.6 | I41: =_xll.ErLognormal(I37,I38) -> 55.6 | J41: =_xll.ErLognormal(J37,J38) -> 55.6 | K41: =_xll.ErLognormal(K37,K38) -> 55.6 | L41: =_xll.ErLognormal(L37,L38) -> 55.6 | M41: =_xll.ErLognormal(M37,M38) -> 44.8 | N41: =_xll.ErLognormal(N37,N38) -> 44.8 | O41: =_xll.ErLognormal(O37,O38) -> 44.8 | P41: =_xll.ErLognormal(P37,P38) -> 44.8 | Q41: =_xll.ErLognormal(Q37,Q38) -> 44.81 | R41: =_xll.ErLognormal(R37,R38) -> 44.81 | S41: =_xll.ErLognormal(S37,S38) -> 44.81 | T41: =_xll.ErLognormal(T37,T38) -> 44.81 | U41: =_xll.ErLognormal(U37,U38) -> 44.81 | V41: =_xll.ErLognormal(V37,V38) -> 44.81
B43: Mean intake low fat milk (g/day) | C43: 60.7 | D43: 60.7 | E43: 60.7 | F43: 60.7 | G43: 60.7 | H43: 60.7 | I43: 60.7 | J43: 60.7 | K43: 60.7 | L43: 60.7 | M43: 64.0 | N43: 64.0 | O43: 64.0 | P43: 64.0 | Q43: 63.97512 | R43: 63.97512 | S43: 63.97512 | T43: 63.97512 | U43: 63.97512 | V43: 63.97512
B44: Relative standard error of estimate (%) | C44: 2.6 | D44: 2.6 | E44: 2.6 | F44: 2.6 | G44: 2.6 | H44: 2.6 | I44: 2.6 | J44: 2.6 | K44: 2.6 | L44: 2.6 | M44: 2.2 | N44: 2.2 | O44: 2.2 | P44: 2.2 | Q44: 2.18813 | R44: 2.18813 | S44: 2.18813 | T44: 2.18813 | U44: 2.18813 | V44: 2.18813
B45: Lower 95% confidence interval of the mean | C45: 55.5 | D45: 55.5 | E45: 55.5 | F45: 55.5 | G45: 55.5 | H45: 55.5 | I45: 55.5 | J45: 55.5 | K45: 55.5 | L45: 55.5 | M45: 59.6 | N45: 59.6 | O45: 59.6 | P45: 59.6 | Q45: 59.59668 | R45: 59.59668 | S45: 59.59668 | T45: 59.59668 | U45: 59.59668 | V45: 59.59668
B46: Upper 95% confidence interval of the mean | C46: 65.8 | D46: 65.8 | E46: 65.8 | F46: 65.8 | G46: 65.8 | H46: 65.8 | I46: 65.8 | J46: 65.8 | K46: 65.8 | L46: 65.8 | M46: 68.4 | N46: 68.4 | O46: 68.4 | P46: 68.4 | Q46: 68.35356 | R46: 68.35356 | S46: 68.35356 | T46: 68.35356 | U46: 68.35356 | V46: 68.35356
B47: Ersatz | C47: =_xll.ErLognormal(C43,C44) -> 60.7 | D47: =_xll.ErLognormal(D43,D44) -> 60.7 | E47: =_xll.ErLognormal(E43,E44) -> 60.7 | F47: =_xll.ErLognormal(F43,F44) -> 60.7 | G47: =_xll.ErLognormal(G43,G44) -> 60.7 | H47: =_xll.ErLognormal(H43,H44) -> 60.7 | I47: =_xll.ErLognormal(I43,I44) -> 60.7 | J47: =_xll.ErLognormal(J43,J44) -> 60.7 | K47: =_xll.ErLognormal(K43,K44) -> 60.7 | L47: =_xll.ErLognormal(L43,L44) -> 60.7 | M47: =_xll.ErLognormal(M43,M44) -> 64.0 | N47: =_xll.ErLognormal(N43,N44) -> 64.0 | O47: =_xll.ErLognormal(O43,O44) -> 64.0 | P47: =_xll.ErLognormal(P43,P44) -> 64.0 | Q47: =_xll.ErLognormal(Q43,Q44) -> 63.98 | R47: =_xll.ErLognormal(R43,R44) -> 63.98 | S47: =_xll.ErLognormal(S43,S44) -> 63.98 | T47: =_xll.ErLognormal(T43,T44) -> 63.98 | U47: =_xll.ErLognormal(U43,U44) -> 63.98 | V47: =_xll.ErLognormal(V43,V44) -> 63.98
B49: Mean intake tea black (g/day) | C49: 148.3 | D49: 148.3 | E49: 148.3 | F49: 148.3 | G49: 148.3 | H49: 148.3 | I49: 148.3 | J49: 148.3 | K49: 148.3 | L49: 148.3 | M49: 205.7 | N49: 205.7 | O49: 205.7 | P49: 205.7 | Q49: 205.7128 | R49: 205.7128 | S49: 205.7128 | T49: 205.7128 | U49: 205.7128 | V49: 205.7128
B50: Relative standard error of estimate (%) | C50: 5.6 | D50: 5.6 | E50: 5.6 | F50: 5.6 | G50: 5.6 | H50: 5.6 | I50: 5.6 | J50: 5.6 | K50: 5.6 | L50: 5.6 | M50: 5.2 | N50: 5.2 | O50: 5.2 | P50: 5.2 | Q50: 5.180459 | R50: 5.180459 | S50: 5.180459 | T50: 5.180459 | U50: 5.180459 | V50: 5.180459
B51: Lower 95% confidence interval of the mean | C51: 137.2 | D51: 137.2 | E51: 137.2 | F51: 137.2 | G51: 137.2 | H51: 137.2 | I51: 137.2 | J51: 137.2 | K51: 137.2 | L51: 137.2 | M51: 195.3 | N51: 195.3 | O51: 195.3 | P51: 195.3 | Q51: 195.3468 | R51: 195.3468 | S51: 195.3468 | T51: 195.3468 | U51: 195.3468 | V51: 195.3468
B52: Upper 95% confidence interval of the mean | C52: 159.4 | D52: 159.4 | E52: 159.4 | F52: 159.4 | G52: 159.4 | H52: 159.4 | I52: 159.4 | J52: 159.4 | K52: 159.4 | L52: 159.4 | M52: 216.1 | N52: 216.1 | O52: 216.1 | P52: 216.1 | Q52: 216.0789 | R52: 216.0789 | S52: 216.0789 | T52: 216.0789 | U52: 216.0789 | V52: 216.0789
B53: Ersatz | C53: =_xll.ErLognormal(C49,C50) -> 148.3 | D53: =_xll.ErLognormal(D49,D50) -> 148.3 | E53: =_xll.ErLognormal(E49,E50) -> 148.3 | F53: =_xll.ErLognormal(F49,F50) -> 148.3 | G53: =_xll.ErLognormal(G49,G50) -> 148.3 | H53: =_xll.ErLognormal(H49,H50) -> 148.3 | I53: =_xll.ErLognormal(I49,I50) -> 148.3 | J53: =_xll.ErLognormal(J49,J50) -> 148.3 | K53: =_xll.ErLognormal(K49,K50) -> 148.3 | L53: =_xll.ErLognormal(L49,L50) -> 148.3 | M53: =_xll.ErLognormal(M49,M50) -> 205.7 | N53: =_xll.ErLognormal(N49,N50) -> 205.7 | O53: =_xll.ErLognormal(O49,O50) -> 205.7 | P53: =_xll.ErLognormal(P49,P50) -> 205.7 | Q53: =_xll.ErLognormal(Q49,Q50) -> 205.71 | R53: =_xll.ErLognormal(R49,R50) -> 205.71 | S53: =_xll.ErLognormal(S49,S50) -> 205.71 | T53: =_xll.ErLognormal(T49,T50) -> 205.71 | U53: =_xll.ErLognormal(U49,U50) -> 205.71 | V53: =_xll.ErLognormal(V49,V50) -> 205.71
B55: Mean intake tea milk (g/day) | C55: 3.8 | D55: 3.8 | E55: 3.8 | F55: 3.8 | G55: 3.8 | H55: 3.8 | I55: 3.8 | J55: 3.8 | K55: 3.8 | L55: 3.8 | M55: 3.8 | N55: 3.8 | O55: 3.8 | P55: 3.8 | Q55: 3.797644 | R55: 3.797644 | S55: 3.797644 | T55: 3.797644 | U55: 3.797644 | V55: 3.797644
B56: Relative standard error of estimate (%) | C56: 0.5 | D56: 0.5 | E56: 0.5 | F56: 0.5 | G56: 0.5 | H56: 0.5 | I56: 0.5 | J56: 0.5 | K56: 0.5 | L56: 0.5 | M56: 0.5 | N56: 0.5 | O56: 0.5 | P56: 0.5 | Q56: 0.5128867 | R56: 0.5128867 | S56: 0.5128867 | T56: 0.5128867 | U56: 0.5128867 | V56: 0.5128867
B57: Lower 95% confidence interval of the mean | C57: 2.8 | D57: 2.8 | E57: 2.8 | F57: 2.8 | G57: 2.8 | H57: 2.8 | I57: 2.8 | J57: 2.8 | K57: 2.8 | L57: 2.8 | M57: 2.8 | N57: 2.8 | O57: 2.8 | P57: 2.8 | Q57: 2.77136 | R57: 2.77136 | S57: 2.77136 | T57: 2.77136 | U57: 2.77136 | V57: 2.77136
B58: Upper 95% confidence interval of the mean | C58: 4.8 | D58: 4.8 | E58: 4.8 | F58: 4.8 | G58: 4.8 | H58: 4.8 | I58: 4.8 | J58: 4.8 | K58: 4.8 | L58: 4.8 | M58: 4.8 | N58: 4.8 | O58: 4.8 | P58: 4.8 | Q58: 4.823928 | R58: 4.823928 | S58: 4.823928 | T58: 4.823928 | U58: 4.823928 | V58: 4.823928
B59: Ersatz | C59: =_xll.ErLognormal(C55,C56) -> 3.8 | D59: =_xll.ErLognormal(D55,D56) -> 3.8 | E59: =_xll.ErLognormal(E55,E56) -> 3.8 | F59: =_xll.ErLognormal(F55,F56) -> 3.8 | G59: =_xll.ErLognormal(G55,G56) -> 3.8 | H59: =_xll.ErLognormal(H55,H56) -> 3.8 | I59: =_xll.ErLognormal(I55,I56) -> 3.8 | J59: =_xll.ErLognormal(J55,J56) -> 3.8 | K59: =_xll.ErLognormal(K55,K56) -> 3.8 | L59: =_xll.ErLognormal(L55,L56) -> 3.8 | M59: =_xll.ErLognormal(M55,M56) -> 3.8 | N59: =_xll.ErLognormal(N55,N56) -> 3.8 | O59: =_xll.ErLognormal(O55,O56) -> 3.8 | P59: =_xll.ErLognormal(P55,P56) -> 3.8 | Q59: =_xll.ErLognormal(Q55,Q56) -> 3.80 | R59: =_xll.ErLognormal(R55,R56) -> 3.80 | S59: =_xll.ErLognormal(S55,S56) -> 3.80 | T59: =_xll.ErLognormal(T55,T56) -> 3.80 | U59: =_xll.ErLognormal(U55,U56) -> 3.80 | V59: =_xll.ErLognormal(V55,V56) -> 3.80
B61: Mean intake coffee black(g/day) | C61: 138.5 | D61: 138.5 | E61: 138.5 | F61: 138.5 | G61: 138.5 | H61: 138.5 | I61: 138.5 | J61: 138.5 | K61: 138.5 | L61: 138.5 | M61: 126.5 | N61: 126.5 | O61: 126.5 | P61: 126.5 | Q61: 126.4924 | R61: 126.4924 | S61: 126.4924 | T61: 126.4924 | U61: 126.4924 | V61: 126.4924
B62: Relative standard error of estimate (%) | C62: 5.4 | D62: 5.4 | E62: 5.4 | F62: 5.4 | G62: 5.4 | H62: 5.4 | I62: 5.4 | J62: 5.4 | K62: 5.4 | L62: 5.4 | M62: 3.2 | N62: 3.2 | O62: 3.2 | P62: 3.2 | Q62: 3.172091 | R62: 3.172091 | S62: 3.172091 | T62: 3.172091 | U62: 3.172091 | V62: 3.172091
B63: Lower 95% confidence interval of the mean | C63: 127.7 | D63: 127.7 | E63: 127.7 | F63: 127.7 | G63: 127.7 | H63: 127.7 | I63: 127.7 | J63: 127.7 | K63: 127.7 | L63: 127.7 | M63: 120.1 | N63: 120.1 | O63: 120.1 | P63: 120.1 | Q63: 120.145 | R63: 120.145 | S63: 120.145 | T63: 120.145 | U63: 120.145 | V63: 120.145
B64: Upper 95% confidence interval of the mean | C64: 149.2 | D64: 149.2 | E64: 149.2 | F64: 149.2 | G64: 149.2 | H64: 149.2 | I64: 149.2 | J64: 149.2 | K64: 149.2 | L64: 149.2 | M64: 132.8 | N64: 132.8 | O64: 132.8 | P64: 132.8 | Q64: 132.8397 | R64: 132.8397 | S64: 132.8397 | T64: 132.8397 | U64: 132.8397 | V64: 132.8397
B65: Ersatz | C65: =_xll.ErLognormal(C61,C62) -> 138.5 | D65: =_xll.ErLognormal(D61,D62) -> 138.5 | E65: =_xll.ErLognormal(E61,E62) -> 138.5 | F65: =_xll.ErLognormal(F61,F62) -> 138.5 | G65: =_xll.ErLognormal(G61,G62) -> 138.5 | H65: =_xll.ErLognormal(H61,H62) -> 138.5 | I65: =_xll.ErLognormal(I61,I62) -> 138.5 | J65: =_xll.ErLognormal(J61,J62) -> 138.5 | K65: =_xll.ErLognormal(K61,K62) -> 138.5 | L65: =_xll.ErLognormal(L61,L62) -> 138.5 | M65: =_xll.ErLognormal(M61,M62) -> 126.5 | N65: =_xll.ErLognormal(N61,N62) -> 126.5 | O65: =_xll.ErLognormal(O61,O62) -> 126.5 | P65: =_xll.ErLognormal(P61,P62) -> 126.5 | Q65: =_xll.ErLognormal(Q61,Q62) -> 126.49 | R65: =_xll.ErLognormal(R61,R62) -> 126.49 | S65: =_xll.ErLognormal(S61,S62) -> 126.49 | T65: =_xll.ErLognormal(T61,T62) -> 126.49 | U65: =_xll.ErLognormal(U61,U62) -> 126.49 | V65: =_xll.ErLognormal(V61,V62) -> 126.49
B67: Mean intake coffee white (g/day) | C67: 53.7 | D67: 53.7 | E67: 53.7 | F67: 53.7 | G67: 53.7 | H67: 53.7 | I67: 53.7 | J67: 53.7 | K67: 53.7 | L67: 53.7 | M67: 53.0 | N67: 53.0 | O67: 53.0 | P67: 53.0 | Q67: 52.96699 | R67: 52.96699 | S67: 52.96699 | T67: 52.96699 | U67: 52.96699 | V67: 52.96699
B68: Relative standard error of estimate (%) | C68: 2.3 | D68: 2.3 | E68: 2.3 | F68: 2.3 | G68: 2.3 | H68: 2.3 | I68: 2.3 | J68: 2.3 | K68: 2.3 | L68: 2.3 | M68: 2.7 | N68: 2.7 | O68: 2.7 | P68: 2.7 | Q68: 2.742485 | R68: 2.742485 | S68: 2.742485 | T68: 2.742485 | U68: 2.742485 | V68: 2.742485
B69: Lower 95% confidence interval of the mean | C69: 49.2 | D69: 49.2 | E69: 49.2 | F69: 49.2 | G69: 49.2 | H69: 49.2 | I69: 49.2 | J69: 49.2 | K69: 49.2 | L69: 49.2 | M69: 47.5 | N69: 47.5 | O69: 47.5 | P69: 47.5 | Q69: 47.47929 | R69: 47.47929 | S69: 47.47929 | T69: 47.47929 | U69: 47.47929 | V69: 47.47929
B70: Upper 95% confidence interval of the mean | C70: 58.2 | D70: 58.2 | E70: 58.2 | F70: 58.2 | G70: 58.2 | H70: 58.2 | I70: 58.2 | J70: 58.2 | K70: 58.2 | L70: 58.2 | M70: 58.5 | N70: 58.5 | O70: 58.5 | P70: 58.5 | Q70: 58.45469 | R70: 58.45469 | S70: 58.45469 | T70: 58.45469 | U70: 58.45469 | V70: 58.45469
B71: Ersatz | C71: =_xll.ErLognormal(C67,C68) -> 53.7 | D71: =_xll.ErLognormal(D67,D68) -> 53.7 | E71: =_xll.ErLognormal(E67,E68) -> 53.7 | F71: =_xll.ErLognormal(F67,F68) -> 53.7 | G71: =_xll.ErLognormal(G67,G68) -> 53.7 | H71: =_xll.ErLognormal(H67,H68) -> 53.7 | I71: =_xll.ErLognormal(I67,I68) -> 53.7 | J71: =_xll.ErLognormal(J67,J68) -> 53.7 | K71: =_xll.ErLognormal(K67,K68) -> 53.7 | L71: =_xll.ErLognormal(L67,L68) -> 53.7 | M71: =_xll.ErLognormal(M67,M68) -> 53.0 | N71: =_xll.ErLognormal(N67,N68) -> 53.0 | O71: =_xll.ErLognormal(O67,O68) -> 53.0 | P71: =_xll.ErLognormal(P67,P68) -> 53.0 | Q71: =_xll.ErLognormal(Q67,Q68) -> 52.97 | R71: =_xll.ErLognormal(R67,R68) -> 52.97 | S71: =_xll.ErLognormal(S67,S68) -> 52.97 | T71: =_xll.ErLognormal(T67,T68) -> 52.97 | U71: =_xll.ErLognormal(U67,U68) -> 52.97 | V71: =_xll.ErLognormal(V67,V68) -> 52.97
A73: Change SSB consumption | B73: 20% tax on sugar-sweetened drinks | C73: 20.0
B74: Adjusted mean intake of carbonated drink (g/day) | C74: =(C7*($G$169^$C$73)) -> 37.1 | D74: 126.8 | E74: 259.8 | F74: 178.4 | G74: 194.0 | H74: 116.7 | I74: 111.4 | J74: 76.0 | K74: 39.5 | L74: 31.6 | M74: 40.3 | N74: 106.4 | O74: 137.1 | P74: 104.4 | Q74: 80.89 | R74: 65.65 | S74: 59.70 | T74: 33.95 | U74: 30.58 | V74: 25.82
B75: Change in soft drink consumption (g/day) | C75: =C74-C7 -> -4.8 | D75: =D74-D7 -> -16.5 | E75: -33.8 | F75: -23.2 | G75: -25.3 | H75: -15.2 | I75: -14.5 | J75: -9.9 | K75: -5.1 | L75: -4.1 | M75: -5.2 | N75: -13.9 | O75: -17.9 | P75: -13.6 | Q75: -10.53 | R75: -8.55 | S75: -7.77 | T75: -4.42 | U75: -3.98 | V75: -3.36
B76: Change in kJ | C76: =C75*$C$149 -> -8.4 | D76: -28.7 | E76: -58.9 | F76: -40.4 | G76: -43.9 | H76: -26.4 | I76: -25.2 | J76: -17.2 | K76: -9.0 | L76: -7.2 | M76: -9.1 | N76: -24.1 | O76: -31.1 | P76: -23.7 | Q76: -18.32 | R76: -14.87 | S76: -13.52 | T76: -7.69 | U76: -6.93 | V76: -5.85
B77: Change in weight (kg) | C77: =C76/$C$140 -> -0.0 | D77: =D76/C141 -> -0.2 | E77: =E76/C142 -> -0.6 | F77: =F76/100 -> -0.4 | G77: -0.4 | H77: -0.3 | I77: -0.3 | J77: -0.2 | K77: -0.1 | L77: -0.1 | M77: =M76/$C$143 -> -0.0 | N77: =N76/$C$144 -> -0.2 | O77: =O76/$C$145 -> -0.3 | P77: -0.2 | Q77: -0.18 | R77: -0.15 | S77: -0.14 | T77: -0.08 | U77: -0.07 | V77: -0.06
B79: Adjusted mean intake of sports drink (g/day) | C79: =C13*$G$169^$C$73 -> 10.6 | D79: 10.6 | E79: 10.6 | F79: 10.6 | G79: 10.6 | H79: 10.6 | I79: 10.6 | J79: 10.6 | K79: 10.6 | L79: 10.6 | M79: 3.0 | N79: 3.0 | O79: 3.0 | P79: 3.0 | Q79: 3.01 | R79: 3.01 | S79: 3.01 | T79: 3.01 | U79: 3.01 | V79: 3.01
B80: Change in sports drink consumption (g/day) | C80: =C79-C13 -> -1.4 | D80: =D79-D13 -> -1.4 | E80: -1.4 | F80: -1.4 | G80: -1.4 | H80: -1.4 | I80: -1.4 | J80: -1.4 | K80: -1.4 | L80: -1.4 | M80: -0.4 | N80: -0.4 | O80: -0.4 | P80: -0.4 | Q80: -0.39 | R80: -0.39 | S80: -0.39 | T80: -0.39 | U80: -0.39 | V80: -0.39
B81: Change in kJ | C81: =C80*$C$150 -> -1.6 | D81: -1.6 | E81: -1.6 | F81: -1.6 | G81: -1.6 | H81: -1.6 | I81: -1.6 | J81: -1.6 | K81: -1.6 | L81: -1.6 | M81: -0.4 | N81: -0.4 | O81: -0.4 | P81: -0.4 | Q81: -0.44 | R81: -0.44 | S81: -0.44 | T81: -0.44 | U81: -0.44 | V81: -0.44
B82: Change in weight (kg) | C82: =C81/C140 -> -0.0 | D82: =D81/C141 -> -0.0 | E82: =E81/C142 -> -0.0 | F82: =F81/100 -> -0.0 | G82: -0.0 | H82: -0.0 | I82: -0.0 | J82: -0.0 | K82: -0.0 | L82: -0.0 | M82: =M81/$C$143 -> -0.0 | N82: =N81/$C$144 -> -0.0 | O82: =O81/$C$145 -> -0.0 | P82: -0.0 | Q82: -0.00 | R82: -0.00 | S82: -0.00 | T82: -0.00 | U82: -0.00 | V82: -0.00
B84: Adjusted mean intake of energy drinks (g/day) | C84: =C19*$G$169^$C73 -> 6.5 | D84: 6.5 | E84: 6.5 | F84: 6.5 | G84: 6.5 | H84: 6.5 | I84: 6.5 | J84: 6.5 | K84: 6.5 | L84: 6.5 | M84: 1.8 | N84: 1.8 | O84: 1.8 | P84: 1.8 | Q84: 1.77 | R84: 1.77 | S84: 1.77 | T84: 1.77 | U84: 1.77 | V84: 1.77
B85: Change in energy drink consumption (g/day) | C85: =C84-C19 -> -0.8 | D85: =D84-D19 -> -0.8 | E85: -0.8 | F85: -0.8 | G85: -0.8 | H85: -0.8 | I85: -0.8 | J85: -0.8 | K85: -0.8 | L85: -0.8 | M85: -0.2 | N85: -0.2 | O85: -0.2 | P85: -0.2 | Q85: -0.23 | R85: -0.23 | S85: -0.23 | T85: -0.23 | U85: -0.23 | V85: -0.23
B86: Change in kJ | C86: =C85*$C$151 -> -1.6 | D86: -1.6 | E86: -1.6 | F86: -1.6 | G86: -1.6 | H86: -1.6 | I86: -1.6 | J86: -1.6 | K86: -1.6 | L86: -1.6 | M86: -0.4 | N86: -0.4 | O86: -0.4 | P86: -0.4 | Q86: -0.44 | R86: -0.44 | S86: -0.44 | T86: -0.44 | U86: -0.44 | V86: -0.44
B87: Change in weight (kg) | C87: =C86/C140 -> -0.0 | D87: =D86/C141 -> -0.0 | E87: =E86/C142 -> -0.0 | F87: =F86/100 -> -0.0 | G87: -0.0 | H87: -0.0 | I87: -0.0 | J87: -0.0 | K87: -0.0 | L87: -0.0 | M87: =M86/$C$143 -> -0.0 | N87: =N86/$C$144 -> -0.0 | O87: =O86/$C$145 -> -0.0 | P87: -0.0 | Q87: -0.00 | R87: -0.00 | S87: -0.00 | T87: -0.00 | U87: -0.00 | V87: -0.00
B89: Adjusted mean intake of fruit drink (g/day) | C89: =C25*$G$171^$C$73 -> 44.6 | D89: 41.9 | E89: 35.0 | F89: 68.2 | G89: 36.3 | H89: 31.8 | I89: 15.3 | J89: 18.8 | K89: 14.3 | L89: 14.8 | M89: 44.2 | N89: 42.9 | O89: 32.9 | P89: 40.1 | Q89: 27.29 | R89: 13.88 | S89: 8.25 | T89: 16.70 | U89: 17.71 | V89: 22.65
B90: Change in fruit drink consumption (g/day) | C90: =C89-C25 -> -15.3 | D90: =D89-D25 -> -14.3 | E90: -12.0 | F90: -23.3 | G90: -12.4 | H90: -10.9 | I90: -5.2 | J90: -6.4 | K90: -4.9 | L90: -5.1 | M90: -15.1 | N90: -14.7 | O90: -11.3 | P90: -13.7 | Q90: -9.34 | R90: -4.75 | S90: -2.82 | T90: -5.72 | U90: -6.06 | V90: -7.75
B91: Change in kJ | C91: =C90*$C$152 -> -28.1 | D91: -26.4 | E91: -22.0 | F91: -43.0 | G91: -22.9 | H91: -20.0 | I91: -9.7 | J91: -11.9 | K91: -9.0 | L91: -9.3 | M91: -27.8 | N91: -27.0 | O91: -20.7 | P91: -25.2 | Q91: -17.19 | R91: -8.74 | S91: -5.20 | T91: -10.52 | U91: -11.15 | V91: -14.27
B92: Change in weight (kg) | C92: =C91/C140 -> -0.1 | D92: =D91/C141 -> -0.2 | E92: =E91/C142 -> -0.2 | F92: =F91/100 -> -0.4 | G92: -0.2 | H92: -0.2 | I92: -0.1 | J92: -0.1 | K92: -0.1 | L92: -0.1 | M92: =M91/$C$143 -> -0.1 | N92: =N91/$C$144 -> -0.2 | O92: =O91/$C$145 -> -0.2 | P92: -0.3 | Q92: -0.17 | R92: -0.09 | S92: -0.05 | T92: -0.11 | U92: -0.11 | V92: -0.14
B94: Adjusted mean intake of cordial made (g/day) | C94: =C31*$G$170^$C$73 -> 34.6 | D94: 50.7 | E94: 26.8 | F94: 37.3 | G94: 28.3 | H94: 27.6 | I94: 36.7 | J94: 8.3 | K94: 11.2 | L94: 20.5 | M94: 24.6 | N94: 22.7 | O94: 21.3 | P94: 11.6 | Q94: 19.91 | R94: 14.56 | S94: 9.16 | T94: 10.59 | U94: 9.53 | V94: 3.49
B95: Change in cordial consumption (g/day) | C95: =C94-C31 -> -17.2 | D95: =D94-D31 -> -25.2 | E95: -13.4 | F95: -18.6 | G95: -14.1 | H95: -13.8 | I95: -18.3 | J95: -4.1 | K95: -5.6 | L95: -10.2 | M95: -12.3 | N95: -11.3 | O95: -10.6 | P95: -5.8 | Q95: -9.91 | R95: -7.25 | S95: -4.56 | T95: -5.27 | U95: -4.74 | V95: -1.74
B96: Change in kJ | C96: =C95*$C$154 -> -25.5 | D96: -37.4 | E96: -19.8 | F96: -27.5 | G96: -20.8 | H96: -20.4 | I96: -27.1 | J96: -6.1 | K96: -8.2 | L96: -15.1 | M96: -18.1 | N96: -16.7 | O96: -15.7 | P96: -8.5 | Q96: -14.67 | R96: -10.73 | S96: -6.75 | T96: -7.80 | U96: -7.02 | V96: -2.57
B97: Change in weight (kg) | C97: =C96/C140 -> -0.1 | D97: =D96/C141 -> -0.2 | E97: =E96/C142 -> -0.2 | F97: =F96/100 -> -0.3 | G97: -0.2 | H97: -0.2 | I97: -0.3 | J97: -0.1 | K97: -0.1 | L97: -0.2 | M97: =M96/$C$143 -> -0.1 | N97: =N96/$C$144 -> -0.1 | O97: =O96/$C$145 -> -0.2 | P97: -0.1 | Q97: -0.15 | R97: -0.11 | S97: -0.07 | T97: -0.08 | U97: -0.07 | V97: -0.03
C98: Change ml males 2-9 | D98: Change ml male 10-14 yrs | E98: Change ml male 15-19 | F98: Changeml male 20-24 | G98: Change ml male 25-34 | H98: Change ml male 35-44 | I98: Change ml male 45-54 | J98: Change ml male 55-64 | K98: Change ml male 65-74 | L98: change ml male 75+ | M98: Change ml females 2-9 | N98: Change ml female 10-14 yrs | O98: Change ml female 15-19 | P98: Changeml female 20-24 | Q98: Change ml female 25-34 | R98: Change ml female 35-44 | S98: Change ml female 45-54 | T98: Change ml female 55-64 | U98: Change ml female 65-74 | V98: change ml female 75+
B99: change in consumption total | C99: =C75+C80+C85+C90+C95 -> -39.6 | D99: =D75+D80+D85+D90+D95 -> -58.3 | E99: -61.4 | F99: -67.4 | G99: -54.0 | H99: -42.1 | I99: -40.3 | J99: -22.7 | K99: -17.8 | L99: -21.6 | M99: -33.2 | N99: -40.5 | O99: -40.3 | P99: -33.7 | Q99: -30.41 | R99: -21.17 | S99: -15.78 | T99: -16.03 | U99: -15.40 | V99: -13.48
B100: Ersatz change in consumption total | C100: =_xll.ErRunOutput(C98,C99) -> -39.6 | D100: =_xll.ErRunOutput(D98,D99) -> -58.3 | E100: =_xll.ErRunOutput(E98,E99) -> -61.4 | F100: =_xll.ErRunOutput(F98,F99) -> -67.4 | G100: =_xll.ErRunOutput(G98,G99) -> -54.0 | H100: =_xll.ErRunOutput(H98,H99) -> -42.1 | I100: =_xll.ErRunOutput(I98,I99) -> -40.3 | J100: =_xll.ErRunOutput(J98,J99) -> -22.7 | K100: =_xll.ErRunOutput(K98,K99) -> -17.8 | L100: =_xll.ErRunOutput(L98,L99) -> -21.6 | M100: =_xll.ErRunOutput(M98,M99) -> -33.2 | N100: =_xll.ErRunOutput(N98,N99) -> -40.5 | O100: =_xll.ErRunOutput(O98,O99) -> -40.3 | P100: =_xll.ErRunOutput(P98,P99) -> -33.7 | Q100: =_xll.ErRunOutput(Q98,Q99) -> -30.41 | R100: =_xll.ErRunOutput(R98,R99) -> -21.17 | S100: =_xll.ErRunOutput(S98,S99) -> -15.78 | T100: =_xll.ErRunOutput(T98,T99) -> -16.03 | U100: =_xll.ErRunOutput(U98,U99) -> -15.40 | V100: =_xll.ErRunOutput(V98,V99) -> -13.48
A103: Change substitutes | B103: Adjusted intake of fruit juice (g/day) | C103: =C41+(C41*$K$174*$C$73) -> 55.6 | D103: 55.6 | E103: 55.6 | F103: 55.6 | G103: 55.6 | H103: 55.6 | I103: 55.6 | J103: 55.6 | K103: 55.6 | L103: 55.6 | M103: 44.8 | N103: 44.8 | O103: 44.8 | P103: 44.8 | Q103: 44.81 | R103: 44.81 | S103: 44.81 | T103: 44.81 | U103: 44.81 | V103: 44.81
B104: Change in fruit juice consumption (g/day) | C104: =C103-C41 -> 0.0 | D104: =D103-D41 -> 0.0 | E104: 0.0 | F104: 0.0 | G104: 0.0 | H104: 0.0 | I104: 0.0 | J104: 0.0 | K104: 0.0 | L104: 0.0 | M104: 0.0 | N104: 0.0 | O104: 0.0 | P104: 0.0 | Q104: 0.00 | R104: 0.00 | S104: 0.00 | T104: 0.00 | U104: 0.00 | V104: 0.00
B105: Change in kJ | C105: =C104*$C$157 -> 0.0 | D105: 0.0 | E105: 0.0 | F105: 0.0 | G105: 0.0 | H105: 0.0 | I105: 0.0 | J105: 0.0 | K105: 0.0 | L105: 0.0 | M105: 0.0 | N105: 0.0 | O105: 0.0 | P105: 0.0 | Q105: 0.00 | R105: 0.00 | S105: 0.00 | T105: 0.00 | U105: 0.00 | V105: 0.00
B106: Change in weight (kg) | C106: =C105/C140 -> 0.0 | D106: =D105/C141 -> 0.0 | E106: =E105/C142 -> 0.0 | F106: =F105/100 -> 0.0 | G106: 0.0 | H106: 0.0 | I106: 0.0 | J106: 0.0 | K106: 0.0 | L106: 0.0 | M106: =M105/$C$143 -> 0.0 | N106: =N105/$C$144 -> 0.0 | O106: =O105/$C$145 -> 0.0 | P106: 0.0 | Q106: 0.00 | R106: 0.00 | S106: 0.00 | T106: 0.00 | U106: 0.00 | V106: 0.00
B108: Adjusted intake low fat milk (g/day) | C108: =C47+(C47*$K$176*$C$73) -> 60.7 | D108: 60.7 | E108: 60.7 | F108: 60.7 | G108: 60.7 | H108: 60.7 | I108: 60.7 | J108: 60.7 | K108: 60.7 | L108: 60.7 | M108: 64.0 | N108: 64.0 | O108: 64.0 | P108: 64.0 | Q108: 63.98 | R108: 63.98 | S108: 63.98 | T108: 63.98 | U108: 63.98 | V108: 63.98
B109: Change in milk consumption (g/day) | C109: =C108-C47 -> 0.0 | D109: =D108-D47 -> 0.0 | E109: 0.0 | F109: 0.0 | G109: 0.0 | H109: 0.0 | I109: 0.0 | J109: 0.0 | K109: 0.0 | L109: 0.0 | M109: 0.0 | N109: 0.0 | O109: 0.0 | P109: 0.0 | Q109: 0.00 | R109: 0.00 | S109: 0.00 | T109: 0.00 | U109: 0.00 | V109: 0.00
B110: Change in kJ | C110: =C109*$C$158 -> 0.0 | D110: 0.0 | E110: 0.0 | F110: 0.0 | G110: 0.0 | H110: 0.0 | I110: 0.0 | J110: 0.0 | K110: 0.0 | L110: 0.0 | M110: 0.0 | N110: 0.0 | O110: 0.0 | P110: 0.0 | Q110: 0.00 | R110: 0.00 | S110: 0.00 | T110: 0.00 | U110: 0.00 | V110: 0.00
B111: Change in weight (kg) | C111: =C110/C140 -> 0.0 | D111: =D110/C141 -> 0.0 | E111: =E110/C142 -> 0.0 | F111: =F110/100 -> 0.0 | G111: 0.0 | H111: 0.0 | I111: 0.0 | J111: 0.0 | K111: 0.0 | L111: 0.0 | M111: =M110/$C$143 -> 0.0 | N111: =N110/$C$144 -> 0.0 | O111: =O110/$C$145 -> 0.0 | P111: 0.0 | Q111: 0.00 | R111: 0.00 | S111: 0.00 | T111: 0.00 | U111: 0.00 | V111: 0.00
B113: Adjusted intake black tea (g/day) | C113: =C53+(C53*$K$177*$C$73) -> 148.3 | D113: 148.3 | E113: 148.3 | F113: 148.3 | G113: 148.3 | H113: 148.3 | I113: 148.3 | J113: 148.3 | K113: 148.3 | L113: 148.3 | M113: 205.7 | N113: 205.7 | O113: 205.7 | P113: 205.7 | Q113: 205.71 | R113: 205.71 | S113: 205.71 | T113: 205.71 | U113: 205.71 | V113: 205.71
B114: Change in tea consumption (g/day) | C114: =C113-C53 -> 0.0 | D114: =D113-D53 -> 0.0 | E114: 0.0 | F114: 0.0 | G114: 0.0 | H114: 0.0 | I114: 0.0 | J114: 0.0 | K114: 0.0 | L114: 0.0 | M114: 0.0 | N114: 0.0 | O114: 0.0 | P114: 0.0 | Q114: 0.00 | R114: 0.00 | S114: 0.00 | T114: 0.00 | U114: 0.00 | V114: 0.00
B115: Change in kJ | C115: =C114*$C$159 -> 0.0 | D115: 0.0 | E115: 0.0 | F115: 0.0 | G115: 0.0 | H115: 0.0 | I115: 0.0 | J115: 0.0 | K115: 0.0 | L115: 0.0 | M115: 0.0 | N115: 0.0 | O115: 0.0 | P115: 0.0 | Q115: 0.00 | R115: 0.00 | S115: 0.00 | T115: 0.00 | U115: 0.00 | V115: 0.00
B116: Change in weight (kg) | C116: =C115/C140 -> 0.0 | D116: =D115/C141 -> 0.0 | E116: =E115/C142 -> 0.0 | F116: =F115/100 -> 0.0 | G116: 0.0 | H116: 0.0 | I116: 0.0 | J116: 0.0 | K116: 0.0 | L116: 0.0 | M116: =M115/$C$143 -> 0.0 | N116: =N115/$C$144 -> 0.0 | O116: =O115/$C$145 -> 0.0 | P116: 0.0 | Q116: 0.00 | R116: 0.00 | S116: 0.00 | T116: 0.00 | U116: 0.00 | V116: 0.00
B118: Adjusted intake tea with milk (g/day) | C118: =C59+(C59*$K$177*$C$73) -> 3.8 | D118: 3.8 | E118: 3.8 | F118: 3.8 | G118: 3.8 | H118: 3.8 | I118: 3.8 | J118: 3.8 | K118: 3.8 | L118: 3.8 | M118: 3.8 | N118: 3.8 | O118: 3.8 | P118: 3.8 | Q118: 3.80 | R118: 3.80 | S118: 3.80 | T118: 3.80 | U118: 3.80 | V118: 3.80
B119: Change in tea consumption (g/day) | C119: =C118-C59 -> 0.0 | D119: =D118-D59 -> 0.0 | E119: 0.0 | F119: 0.0 | G119: 0.0 | H119: 0.0 | I119: 0.0 | J119: 0.0 | K119: 0.0 | L119: 0.0 | M119: 0.0 | N119: 0.0 | O119: 0.0 | P119: 0.0 | Q119: 0.00 | R119: 0.00 | S119: 0.00 | T119: 0.00 | U119: 0.00 | V119: 0.00
B120: Change in kJ | C120: =C119*$C$160 -> 0.0 | D120: 0.0 | E120: 0.0 | F120: 0.0 | G120: 0.0 | H120: 0.0 | I120: 0.0 | J120: 0.0 | K120: 0.0 | L120: 0.0 | M120: 0.0 | N120: 0.0 | O120: 0.0 | P120: 0.0 | Q120: 0.00 | R120: 0.00 | S120: 0.00 | T120: 0.00 | U120: 0.00 | V120: 0.00
B121: Change in weight (kg) | C121: =C120/C140 -> 0.0 | D121: =D120/C141 -> 0.0 | E121: =E120/C142 -> 0.0 | F121: =F120/100 -> 0.0 | G121: 0.0 | H121: 0.0 | I121: 0.0 | J121: 0.0 | K121: 0.0 | L121: 0.0 | M121: =M120/$C$143 -> 0.0 | N121: =N120/$C$144 -> 0.0 | O121: =O120/$C$145 -> 0.0 | P121: 0.0 | Q121: 0.00 | R121: 0.00 | S121: 0.00 | T121: 0.00 | U121: 0.00 | V121: 0.00
B123: Adjusted intake coffee black (g/day) | C123: =C65+(C65*$K$178*$C$73) -> 138.5 | D123: 138.5 | E123: 138.5 | F123: 138.5 | G123: 138.5 | H123: 138.5 | I123: 138.5 | J123: 138.5 | K123: 138.5 | L123: 138.5 | M123: 126.5 | N123: 126.5 | O123: 126.5 | P123: 126.5 | Q123: 126.49 | R123: 126.49 | S123: 126.49 | T123: 126.49 | U123: 126.49 | V123: 126.49
B124: Change in coffee black consumption (g/day) | C124: =C123-C65 -> 0.0 | D124: =D123-D65 -> 0.0 | E124: 0.0 | F124: 0.0 | G124: 0.0 | H124: 0.0 | I124: 0.0 | J124: 0.0 | K124: 0.0 | L124: 0.0 | M124: 0.0 | N124: 0.0 | O124: 0.0 | P124: 0.0 | Q124: 0.00 | R124: 0.00 | S124: 0.00 | T124: 0.00 | U124: 0.00 | V124: 0.00
B125: Change in kJ | C125: =C124*$C$164 -> 0.0 | D125: 0.0 | E125: 0.0 | F125: 0.0 | G125: 0.0 | H125: 0.0 | I125: 0.0 | J125: 0.0 | K125: 0.0 | L125: 0.0 | M125: 0.0 | N125: 0.0 | O125: 0.0 | P125: 0.0 | Q125: 0.00 | R125: 0.00 | S125: 0.00 | T125: 0.00 | U125: 0.00 | V125: 0.00
B126: Change in weight (kg) | C126: =C125/C140 -> 0.0 | D126: =D125/C141 -> 0.0 | E126: =E125/C142 -> 0.0 | F126: =F125/100 -> 0.0 | G126: 0.0 | H126: 0.0 | I126: 0.0 | J126: 0.0 | K126: 0.0 | L126: 0.0 | M126: =M125/$C$143 -> 0.0 | N126: =N125/$C$144 -> 0.0 | O126: =O125/$C$145 -> 0.0 | P126: 0.0 | Q126: 0.00 | R126: 0.00 | S126: 0.00 | T126: 0.00 | U126: 0.00 | V126: 0.00
B128: Adjusted intake coffee white (g/day) | C128: =C71+(C71*$K$178*$C$73) -> 53.7 | D128: 53.7 | E128: 53.7 | F128: 53.7 | G128: 53.7 | H128: 53.7 | I128: 53.7 | J128: 53.7 | K128: 53.7 | L128: 53.7 | M128: 53.0 | N128: 53.0 | O128: 53.0 | P128: 53.0 | Q128: 52.97 | R128: 52.97 | S128: 52.97 | T128: 52.97 | U128: 52.97 | V128: 52.97
B129: Change in coffee white consumption (g/day) | C129: =C128-C71 -> 0.0 | D129: =D128-D71 -> 0.0 | E129: 0.0 | F129: 0.0 | G129: 0.0 | H129: 0.0 | I129: 0.0 | J129: 0.0 | K129: 0.0 | L129: 0.0 | M129: 0.0 | N129: 0.0 | O129: 0.0 | P129: 0.0 | Q129: 0.00 | R129: 0.00 | S129: 0.00 | T129: 0.00 | U129: 0.00 | V129: 0.00
B130: Change in kJ | C130: =C129*$C$164 -> 0.0 | D130: 0.0 | E130: 0.0 | F130: 0.0 | G130: 0.0 | H130: 0.0 | I130: 0.0 | J130: 0.0 | K130: 0.0 | L130: 0.0 | M130: 0.0 | N130: 0.0 | O130: 0.0 | P130: 0.0 | Q130: 0.00 | R130: 0.00 | S130: 0.00 | T130: 0.00 | U130: 0.00 | V130: 0.00
B131: Change in weight (kg) | C131: =C130/C140 -> 0.0 | D131: =D130/C141 -> 0.0 | E131: =E130/C142 -> 0.0 | F131: =F130/100 -> 0.0 | G131: 0.0 | H131: 0.0 | I131: 0.0 | J131: 0.0 | K131: 0.0 | L131: 0.0 | M131: =M130/$C$143 -> 0.0 | N131: =N130/$C$144 -> 0.0 | O131: =O130/$C$145 -> 0.0 | P131: 0.0 | Q131: 0.00 | R131: 0.00 | S131: 0.00 | T131: 0.00 | U131: 0.00 | V131: 0.00
B133: change in overall weight | C133: =C77+C82+C87+C92+C97+C106+C111+C116+C121+C126+C131 -> -0.28 | D133: =D77+D82+D87+D92+D97+D106+D111+D116+D121+D126+D131 -> -0.60 | E133: -0.97 | F133: -1.14 | G133: -0.91 | H133: -0.70 | I133: -0.65 | J133: -0.38 | K133: -0.29 | L133: -0.35 | M133: -0.26 | N133: -0.46 | O133: -0.66 | P133: -0.58 | Q133: -0.51 | R133: -0.35 | S133: -0.26 | T133: -0.27 | U133: -0.26 | V133: -0.24
B138: Energy balance Equations | C138: Kj per kg
B139: Adults | C139: 100.0
B140: boy (age 2-9, av age 5) | C140: =(68-2.5*5)*4.184 -> 232.2
B141: boy (age 10-14, av age 12) | C141: =(68-2.5*12)*4.184 -> 159.0
B142: boy (age 15-18, av age 17) | C142: =(68-2.5*17)*4.184 -> 106.7
B143: girl (age 2-9, av age 5) | C143: =(62-2.2*5)*4.184 -> 213.4
B144: girl (age 10-14, av age 12) | C144: =(62-2.2*12)*4.184 -> 149.0
B145: girl (age 15-18, av age 17) | C145: =(62-2.2*17)*4.184 -> 102.9
A147: Kilojoules per drink
A148: Drink type | B148: kj/100ml | C148: KJ/g | D148: notes | E148: source
A149: soft drink, | B149: 174 | C149: =B149/100 -> 1.74 | D149: cola | E149: Nutrient tables (NUTTAB 2010) http://www.foodstandards.gov.au/science/monitoringnutrients/nutrientables/nuttab/Pages/default.aspx
A150: sports drink | B150: 113 | C150: 1.13 | D150: gatorade
A151: Energy drink | B151: 191 | C151: 1.91 | D151: energy drink
A152: fruit drink | B152: 184 | C152: 1.84 | D152: orange 25%
A153: cordial concentrate | B153: 740 | C153: 7.4 | D153: Cordial, 25% citrus fruit juice
A154: diluted cordial kj/g | B154: 148 | C154: 1.48 | D154: Cordial, 25% citrus fruit juice
A155: Diet soft drinks | B155: 0 | C155: 0
A156: bottled water | B156: 0 | C156: 0
A157: Fruit juice | B157: 116 | C157: 1.16
A158: low fat milk | B158: 212 | C158: 2.12
A159: tea | B159: 6 | C159: 0.06
A160: tea with milk | B160: =(B159+$B$157*0.31) -> 41.96 | C160: 0.42
A161: Coffee instant | B161: 5 | C161: 0.05 | D161: instant
A162: cappuccino | B162: 146 | C162: 1.46 | D162: cappuccino
A163: coffee with milk | B163: =(B161+$C$158*31) -> 70.72 | C163: 0.71 | D163: with average milk 31g | E163: http://www.foodstandards.gov.au/science/monitoringnutrients/ausnut/foodmeasures/Pages/2011-Dash-and-splash-measures-program.aspx
A164: average coffee | B164: =AVERAGE(B162:B163) -> 108 | C164: =AVERAGE(C162:C163) -> 1.08 | D164: average of instant and cappucino
A167: Price Elasticities: Impact of 20% valoric (flat) tax on consumption: all households (Sharma) | E167: impact of 1% tax calculations
A168: % Change per capita Quantities of | B168: Direct effect | C168: Indirect effect | D168: Total effect (%) | E168: Total effect | F168: SE | G168: ersatz for ages | H168: ersatz for tax | I168: Z score 10% CI | J168: Z score 5% CI | K168: Notes
A169: Soft drinks | B169: -12.63 | C169: 1.1 | D169: -11.52 | E169: =(1+D169/100)^0.05 -> 0.994 | F169: =ABS((1-E169)/J169) -> 0.00 | G169: 0.994 | H169: =_xll.ErNormal(E169,F169) -> 0.994 | I169: 1.64 | J169: 1.959964 | K169: Z score with alpha 0.1 two tailed (probability .05) https://www.fourmilab.ch/rpkp/experiments/analysis/zCalc.html
A170: Cordial | B170: -19.68 | C170: -13.54 | D170: -33.23 | E170: =(1+D170/100)^0.05 -> 0.980 | F170: =ABS((1-E170)/J170) -> 0.01 | G170: 0.980 | H170: =_xll.ErNormal(E170,F170) -> 0.980 | I170: 1.64 | J170: 1.959964
A171: Fruit drink | B171: -21.04 | C171: -4.25 | D171: -25.5 | E171: 0.985 | F171: 0.01 | G171: 0.985 | H171: =_xll.ErNormal(E171,F171) -> 0.985 | I171: 1.64 | J171: 1.959964
A172: Diet soft drinks | B172: 0 | C172: 3.17 | D172: 3.17 | E172: 1.002 | F172: 0.00 | G172: 1.002 | H172: =_xll.ErNormal(E172,F172) -> 1.002 | I172: 1.64 | J172: 1.959964
A173: Bottled water | B173: 0 | C173: 1.58 | D173: 1.58 | E173: 1.001 | F173: 0.00 | G173: 1.001 | H173: =_xll.ErNormal(E173,F173) -> 1.001 | I173: 1.64 | J173: 1.959964
A174: Fruit juice | B174: 0 | C174: 0.67 | D174: 0.67 | E174: 1.000 | F174: 0.00 | G174: 1.000 | H174: =_xll.ErNormal(E174,F174) -> 1.000 | I174: 1.64 | J174: 1.959964
A175: High-fat milk | B175: 0 | C175: 0 | D175: 0
A176: Low-fat milk | B176: 0 | C176: 1.13 | D176: 1.13 | E176: 1.001 | F176: 0.00 | G176: 1.001 | H176: =_xll.ErNormal(E176,F176) -> 1.001 | I176: 1.64 | J176: 1.959964
A177: Tea | B177: 0 | C177: 1.88 | D177: 1.88 | E177: 1.001 | F177: 0.00 | G177: 1.001 | H177: =_xll.ErNormal(E177,F177) -> 1.001 | I177: 1.64 | J177: 1.959964
A178: Coffee | B178: 0 | C178: -0.13 | D178: -0.13 | E178: 1.000 | F178: 0.00 | G178: 1.000 | H178: =_xll.ErNormal(E178,F178) -> 1.000 | I178: 1.64 | J178: 1.959964
E206: Age multiplier effect for quintile data | G206: Fractions of totals
B207: For calculation of tax on sport and energy drinks | C207: total | F207: mean intake | G207: 2-9 | H207: 10-14 yrs | I207: 15-19 | J207: 20-24 | K207: 25-34 | L207: 35-44 | M207: 45-54 | N207: 55-64 | O207: 65-74 | P207: 75+
B208: Mean intake fizzy drinks (g/day) | C208: 101.66 | E208: males soft drinks | F208: 130.2 | G208: =C3/$F$208 -> 0.32 | H208: =D3/$F$208 -> 1.10 | I208: 2.26 | J208: 1.55 | K208: 1.68 | L208: 1.01 | M208: 0.97 | N208: 0.66 | O208: 0.34 | P208: 0.27
B209: Relative standard error of estimate (%) | C209: 2.95 | E209: females soft drinks | F209: 72.7 | G209: =M3/$F$209 -> 0.63 | H209: =N3/$F$209 -> 1.65 | I209: 2.13 | J209: 1.62 | K209: 1.26 | L209: 1.02 | M209: 0.93 | N209: 0.53 | O209: 0.48 | P209: 0.40
B210: Lower 95% confidence interval of the mean | C210: 95.76 | E210: males fruit drink | F210: 41.3 | G210: =C21/$F$210 -> 1.45 | H210: =D21/$F$210 -> 1.36 | I210: 1.14 | J210: 2.22 | K210: 1.18 | L210: 1.03 | M210: 0.50 | N210: 0.61 | O210: 0.47 | P210: 0.48
B211: Upper 95% confidence interval of the mean | C211: 107.55 | E211: females fruit drink | F211: 32.5 | G211: =M21/$F$211 -> 1.83 | H211: =N21/$F$211 -> 1.78 | I211: 1.36 | J211: 1.66 | K211: 1.13 | L211: 0.57 | M211: 0.34 | N211: 0.69 | O211: 0.73 | P211: 0.94
B212: ersatz | C212: =_xll.ErLognormal(C208,C209) -> 101.66 | E212: males cordial | F212: 42.1 | G212: =C27/$F$212 -> 1.23 | H212: =D27/$F$212 -> 1.80 | I212: 0.95 | J212: 1.33 | K212: 1.00 | L212: 0.98 | M212: 1.31 | N212: 0.30 | O212: 0.40 | P212: 0.73
B213: Adjusted mean intake of fizzy drink (g/day) | C213: =C212*($H$169^$C$73) -> 89.95 | E213: females cordial | F213: 22.1 | G213: =M27/$F$213 -> 1.67 | H213: =N27/$F$213 -> 1.54 | I213: 1.44 | J213: 0.79 | K213: 1.35 | L213: 0.99 | M213: 0.62 | N213: 0.72 | O213: 0.64 | P213: 0.24
E214: total means male | F214: =F208+F210+F212 -> 213.6 | G214: =(C3+C21+C27)/$F$214 -> 0.72 | H214: =(D3+D21+D27)/$F$214 -> 1.29 | I214: 1.78 | J214: 1.63 | K214: 1.45 | L214: 1.01 | M214: 0.94 | N214: 0.58 | O214: 0.38 | P214: 0.40
B215: Mean intake sports drinks (g/day) | C215: 7.74 | E215: total means female | F215: =F209+F211+F213 -> 127.3 | G215: =(M3+M21+M27)/($F$215) -> 1.11 | H215: =(N3+N21+N27)/($F$215) -> 1.67 | I215: 1.82 | J215: 1.49 | K215: 1.24 | L215: 0.90 | M215: 0.73 | N215: 0.60 | O215: 0.57 | P215: 0.51
B216: Relative standard error of estimate (%) | C216: 0.86
B217: Lower 95% confidence interval of the mean | C217: 6.02
B218: Upper 95% confidence interval of the mean | C218: 9.45
B219: ersatz | C219: =_xll.ErLognormal(C215,C216) -> 7.74
B220: Adjusted mean intake of sports drink (g/day) | C220: =C219*($H$169^$C$73) -> 6.84
B222: Mean intake energy drinks (g/day) | C222: 4.68
B223: Relative standard error of estimate (%) | C223: 0.48
B224: Lower 95% confidence interval of the mean | C224: 3.71
B225: Upper 95% confidence interval of the mean | C225: 5.64
B226: ersatz | C226: =_xll.ErLognormal(C222,C223) -> 4.68
B227: Adjusted mean intake of energy drink (g/day) | C227: =C226*($H$169^$C$73) -> 4.14
B229: Mean intake cordial made (g/day) | C229: 32.07
B230: Relative standard error of estimate (%) | C230: 2.21
B231: Lower 95% confidence interval of the mean | C231: 27.65
B232: Upper 95% confidence interval of the mean | C232: 36.48
B233: ersatz | C233: =_xll.ErLognormal(C229,C230) -> 32.07
B234: Adjusted mean intake of cordial (g/day) | C234: =C233*($H$170^$C$73) -> 21.41
B237: Mean intake fruit drink(g/day) | C237: 36.84
B238: Relative standard error of estimate (%) | C238: 1.81
B239: Lower 95% confidence interval of the mean | C239: 33.23
B240: Upper 95% confidence interval of the mean | C240: 40.45
B241: ersatz | C241: =_xll.ErLognormal(C237,C238) -> 36.84
B242: Adjusted mean intake of fruit drink (g/day) | C242: =C241*($H$171^$C$73) -> 27.45

Sheet Calc-costs Aus pop
A1: Cost Calculations
A2: C1 costs (Healthcare sector)
B3: Base case | AG3: Sensitivity Analysis values
A4: Cost item | B4: Mean unit cost | C4: SD | D4: SE | E4: Upper CI | F4: Lower CI | G4: Distribution used in Ersatz | H4: min | I4: max | J4: n | K4: a | L4: B | M4: ersatz distrubution calculation | N4: ersatz output calculation | O4: Source | P4: Assumptions/ comments | Q4: Resouce use | R4: SD | S4: SE | T4: Upper CI | U4: Lower CI | V4: Distribution used in Ersatz | W4: min | X4: max | Y4: n | Z4: a | AA4: B | AB4: ersatz distrubution calculation | AC4: ersatz output calculation | AD4: Source | AE4: Assumptions/ comments | AF4: Cost | AG4: Lowest value found | AH4: Highest value found | AI4: SD | AJ4: Distribution used in Ersatz | AK4: Calculated upper CI | AL4: Calculated Lower CI | AM4: Source | AN4: Comments | AO4: Assumptions
AF5: =N4*AC4
A7: Total C1 cost | AF7: =sum(N4,N5)
A8: C1 cost Upper CI | AF8: based on AF6
A9: C1 cost Lower CI | AF9: based on AF6
A11: C2a costs (Government, cost of legislation
B12: Base case | AG12: Sensitivity Analysis values
A13: Cost item | B13: Mean unit cost | C13: SD | D13: SE | E13: Upper CI | F13: Lower CI | G13: Distribution used in Ersatz | H13: min | I13: max | J13: n | K13: a | L13: B | M13: ersatz distrubution calculation | N13: ersatz output calculation | O13: Source | P13: Assumptions/ comments | Q13: Resouce use | R13: SD | S13: SE | T13: Upper CI | U13: Lower CI | V13: Distribution used in Ersatz | W13: min | X13: max | Y13: n | Z13: a | AA13: B | AB13: ersatz distrubution calculation | AC13: ersatz output calculation | AD13: Source | AE13: Assumptions/ comments | AF13: Cost | AG13: Lowest value found | AH13: Highest value found | AI13: SD | AJ13: Distribution used in Ersatz | AK13: Calculated upper CI | AL13: Calculated Lower CI | AM13: Source | AN13: Comments | AO13: Assumptions
A14: G Tax department accountant salary | B14: =B100 -> 84,889 | D14: =$E$100 -> 3,250 | E14: =B14+(1.96*D14) -> 91,259 | F14: =B14-(1.96*D14) -> 78,519 | G14: Gamma | K14: =(B14*B14)/(D14*D14) -> 682 | L14: =(D14*D14)/B14 -> 124 | M14: =_xll.ErGamma(K14,L14) -> 84,889 | N14: =_xll.ErRunOutput(A14,M14) -> 84,889 | O14: ABS G93 | Q14: =B93 -> 0 | S14: =(T14-Q14)/1.96 -> 0 | T14: =D93 -> 1 | U14: =C93 -> 0 | V14: gamma | W14: 0 | X14: 1 | Z14: =(Q14*Q14)/(U14*U14) -> 10 | AA14: =(U14*U14)/Q14 -> 0 | AB14: =_xll.ErGamma(Z14,AA14) -> 0 | AD14: Samples drawn from a uniform distribution (min=0.09, max=0.55) data from personal communications with Washington and West Virginia State Departments of Revenue; (Long 2015) | AE14: Government administration and compliance time costs per million people per year (FTE) | AF14: =AB14*M14*B66 -> 564,798
A15: G Field audit salary | B15: =B100 -> 84,889 | D15: =$E$100 -> 3,250 | E15: =B15+(1.96*D15) -> 91,259 | F15: =B15-(1.96*D15) -> 78,519 | G15: Gamma | K15: =(B15*B15)/(D15*D15) -> 682 | L15: =(D15*D15)/B15 -> 124 | M15: =_xll.ErGamma(K15,L15) -> 84,889 | N15: =_xll.ErRunOutput(A15,M15) -> 84,889 | O15: ABS G93 | Q15: =B94 -> 0 | S15: =(T15-Q15)/1.96 -> 0 | T15: =D94 -> 0 | U15: =C94 -> 0 | V15: gamma | W15: 0 | X15: 0 | Z15: =(Q15*Q15)/(S15*S15) -> 138 | AA15: =(S15*S15)/Q15 -> 0 | AB15: =_xll.ErGamma(Z15,AA15) -> 0 | AD15: based on an estimate of field audit time ( +or-25%) from a personal communication with West Virginia State Department of Revenue (Long 2015) | AE15: Government administration and compliance time costs per million people per year (FTE) | AF15: =AB15*M15*B66 -> 529,498
A16: G Field audit direct costs | B16: =B96 -> 13,780 | D16: =(E16-B16)/1.96 -> 1,756 | E16: =D96 -> 17,222 | F16: =I95 -> 10,325 | G16: Gamma | K16: =(B16*B16)/(D16*D16) -> 62 | L16: =(D16*D16)/B16 -> 224 | M16: =_xll.ErGamma(K16,L16) -> 13,780 | N16: =_xll.ErRunOutput(A16,M16) -> 13,780 | O16: Long F89 | Q16: =B66 -> 21 | AD16: ABS census 2011 | AE16: Australian population millions | AF16: =M16*Q16 -> 286,517
A17: G Tax certification system operating costs | B17: =B98 -> 17,883 | D17: =(E17-B17)/1.96 -> 2,683 | E17: =D98 -> 23,142 | F17: =C98 -> 12,563 | G17: Gamma | K17: =(B17*B17)/(D17*D17) -> 44 | L17: =(D17*D17)/B17 -> 403 | M17: =_xll.ErGamma(K17,L17) -> 17,883 | N17: =_xll.ErRunOutput(A17,M17) -> 17,883 | O17: Long F92 | Q17: =B66 -> 21 | AD17: ABS census 2012 | AE17: Australian population millions | AF17: =M17*Q17 -> 371,816
A18: Passing Legislation in parliament | B18: =H135 -> 1,089,687 | D18: =(F18-B18)/1.96 -> -68,622 | E18: =C135 -> 1,241,580.31 | F18: =E135 -> 955,188 | G18: Gamma | K18: =(B18*B18)/(D18*D18) -> 252 | L18: =(D18*D18)/B18 -> 4,321 | M18: =_xll.ErGamma(K18,L18) -> 1,089,687 | N18: =_xll.ErRunOutput(A18,M18) -> 1,089,687 | O18: see below | P18: average cost 2010-2015 | AD18: Various | AE18: One off cost in first year | AF18: =M18 -> 1,089,687
A19: Total C2a cost year 1 | B19: =SUM(AF14:AF18) -> 2,842,315 | N19: =_xll.ErRunOutput(A19,B19) -> 2,842,315
A20: C2a cost year 1 Upper CI
A21: C2a cost year 1 Lower CI
A22: Total C2a cost year 2-10 | B22: =B19-M18 -> 1,752,628 | N22: =_xll.ErRunOutput(A22,B19-AF18) -> 1,752,628
A23: C2a cost Upper CI
A24: C2a cost Lower CI
A25: C2b costs Industry
B26: Base case | AG26: Sensitivity Analysis values
A27: Cost item | B27: Mean unit cost | C27: SD | D27: SE | E27: Upper CI | F27: Lower CI | G27: Distribution used in Ersatz | H27: min | I27: max | J27: n | K27: a | L27: B | M27: ersatz distrubution calculation | N27: ersatz output calculation | O27: Source | P27: Assumptions/ comments | Q27: Resouce use | R27: SD | S27: SE | T27: Upper CI | U27: Lower CI | V27: Distribution used in Ersatz | W27: min | X27: max | Y27: n | Z27: a | AA27: B | AB27: ersatz distrubution calculation | AC27: ersatz output calculation | AD27: Source | AE27: Assumptions/ comments | AF27: Cost | AG27: Lowest value found | AH27: Highest value found | AI27: SD | AJ27: Distribution used in Ersatz | AK27: Calculated upper CI | AL27: Calculated Lower CI | AM27: Source | AN27: Comments | AO27: Assumptions
A28: Tax department accountant salary | B28: =$B$102 -> 98,423 | D28: =$E$102 -> 5,044 | E28: =B28+(1.96*D28) -> 108,309 | F28: =B28-(1.96*D28) -> 88,536 | G28: Gamma | K28: =(B28*B28)/(D28*D28) -> 381 | L28: =(D28*D28)/B28 -> 258 | M28: =_xll.ErGamma(K28,L28) -> 98,423 | N28: =_xll.ErRunOutput(A28,M28) -> 98,423 | Q28: =Q14 -> 0 | U28: =U14 -> 0 | V28: gamma | W28: =W14 -> 0 | X28: =X14 -> 1 | Z28: =(Q28*Q28)/(U28*U28) -> 10 | AA28: =(U28*U28)/Q28 -> 0 | AB28: =_xll.ErGamma(Z28,AA28) -> 0 | AD28: as above | AE28: Government administration and compliance time costs per million people per year (FTE) | AF28: =AB28*M28*B66 -> 654,842
A29: Field audit salary | B29: =$B$102 -> 98,423 | D29: =$E$102 -> 5,044 | E29: =B29+(1.96*D29) -> 108,309 | F29: =B29-(1.96*D29) -> 88,536 | G29: Gamma | K29: =(B29*B29)/(D29*D29) -> 381 | L29: =(D29*D29)/B29 -> 258 | M29: =_xll.ErGamma(K29,L29) -> 98,423 | N29: =_xll.ErRunOutput(A29,M29) -> 98,423 | Q29: =Q15 -> 0 | S29: =S15 -> 0 | U29: =U15 -> 0 | V29: gamma | W29: =W15 -> 0 | X29: =X15 -> 0 | Z29: =(Q29*Q29)/(U29*U29) -> 2 | AA29: =(U29*U29)/Q29 -> 0 | AB29: =_xll.ErGamma(Z29,AA29) -> 0 | AD29: as above | AE29: Government administration and compliance time costs per million people per year (FTE) | AF29: =AB29*M29*B66 -> 613,914
A30: Field audit direct costs | B30: 13,780 | D30: 1,756 | E30: =K95 -> 17,222 | F30: 10,325 | G30: Gamma | K30: =(B30*B30)/(D30*D30) -> 62 | L30: =(D30*D30)/B30 -> 224 | M30: =_xll.ErGamma(K30,L30) -> 13,780 | N30: =_xll.ErRunOutput(A30,M30) -> 13,780 | O30: Long F89 | Q30: =B66 -> 21 | AD30: as above | AF30: =M30*Q30 -> 286,517
A31: Tax certification system operating costs | B31: 17,883 | D31: 2,683 | E31: 23,142 | F31: 12,563 | G31: Gamma | K31: =(B31*B31)/(D31*D31) -> 44 | L31: =(D31*D31)/B31 -> 403 | M31: =_xll.ErGamma(K31,L31) -> 17,883 | N31: =_xll.ErRunOutput(A31,M31) -> 17,883 | O31: Long F92 | Q31: =B66 -> 21 | AD31: ABS census 2012 | AE31: Australian population millions | AF31: =M31*Q31 -> 371,816
A32: Total C2b cost | B32: =SUM(AF28:AF31) -> 1,927,089 | N32: =_xll.ErRunOutput(A32,B32) -> 1,927,089
A33: C2b cost Upper CI
A34: C2b cost Lower CI
A35: Total costs C2 10 years | B35: =N19+N32+N22*9 -> 20,543,055 | N35: =_xll.ErRunOutput(A36,B35) -> 20,543,055
A36: Total costs 10 years
A37: C3 costs (patient and family)
B38: Base case | AG38: Sensitivity Analysis values
A39: Cost item | B39: Mean unit cost | C39: SD | D39: SE | E39: Upper CI | F39: Lower CI | G39: Distribution used in Ersatz | H39: min | I39: max | J39: n | K39: a | L39: B | M39: ersatz distrubution calculation | N39: ersatz output calculation | O39: Source | P39: Assumptions/ comments | Q39: Resouce use | R39: SD | S39: SE | T39: Upper CI | U39: Lower CI | V39: Distribution used in Ersatz | W39: min | X39: max | Y39: n | Z39: a | AA39: B | AB39: ersatz distrubution calculation | AC39: ersatz output calculation | AD39: Source | AE39: Assumptions/ comments | AF39: Cost | AG39: Lowest value found | AH39: Highest value found | AI39: SD | AJ39: Distribution used in Ersatz | AK39: Calculated upper CI | AL39: Calculated Lower CI | AM39: Source | AN39: Comments | AO39: Assumptions
A40: Tax per fizzy drinks | B40: =B60 -> $0.58 | D40: =(I40-B40)/1.96 -> 0.29 | G40: Gamma | H40: =B61 -> $0.15 | I40: =B62 -> $1.14 | K40: =(B40*B40)/(D40*D40) -> 4.16 | L40: =(D40*D40)/B40 -> 0.14 | M40: =_xll.ErGamma(K40,L40) -> 0.58 | N40: =_xll.ErRunOutput(A40,M40) -> 0.58 | O40: coles online | P40: 20% of price per litre | Q40: =C69*M40*365*$A$66 -> 397,497,146 | AD40: Sharma 2014 | AE40: Tax burden - the additional cost of beverage attributed to SSB tax. | AF40: =Q40 -> 397,497,146 | AG40: =B61 -> $0.15 | AH40: =B62 -> $1.14
A41: Tax per Sports drinks | B41: =D60 -> $1.11 | D41: =(I41-B41)/1.96 -> 0.06 | G41: Gamma | H41: =D61 -> $0.88 | I41: =D62 -> $1.23 | K41: =(B41*B41)/(D41*D41) -> 349.84 | L41: =(D41*D41)/B41 -> 0.00 | M41: =_xll.ErGamma(K41,L41) -> 1.11 | N41: =_xll.ErRunOutput(A41,M41) -> 1.11 | O41: coles online | P41: 20% of price per litre | Q41: =C70*M41*365*$A$66 -> 57,828,671 | AE41: Tax burden - the additional cost of beverage attributed to SSB tax. | AF41: =Q41 -> 57,828,671
A42: Tax per Energy Drinks | B42: =F60 -> $2.10 | D42: =(I42-B42)/1.96 -> 0.27 | G42: Gamma | H42: =F61 -> $1.40 | I42: =F62 -> $2.64 | K42: =(B42*B42)/(D42*D42) -> 58.46 | L42: =(D42*D42)/B42 -> 0.04 | M42: =_xll.ErGamma(K42,L42) -> 2.10 | N42: =_xll.ErRunOutput(A42,M42) -> 2.10 | O42: coles online | P42: 20% of price per litre | Q42: =C71*M42*365*$A$66 -> 65,995,523 | AE42: Tax burden - the additional cost of beverage attributed to SSB tax. | AF42: =Q42 -> 65,995,523
A43: Tax per Cordial | B43: =J60 -> $1.10 | D43: =(I43-B43)/1.96 -> 0.34 | G43: Gamma | H43: =J61 -> $1.05 | I43: =J62 -> $1.76 | K43: =(B43*B43)/(D43*D43) -> 10.50 | L43: =(D43*D43)/B43 -> 0.10 | M43: =_xll.ErGamma(K43,L43) -> 1.10 | N43: =_xll.ErRunOutput(A43,M43) -> 1.10 | O43: coles online | P43: 20% of price per litre | Q43: =C72*M43*365*$A$66 -> 17,800,115 | AE43: Tax burden - the additional cost of beverage attributed to SSB tax. | AF43: =Q43 -> 17,800,115
A44: Tax per Fruit drink | B44: =H60 -> $0.51 | D44: =(I44-B44)/1.96 -> 0.06 | G44: Gamma | H44: =H61 -> $0.38 | I44: =H62 -> $0.63 | K44: =(B44*B44)/(D44*D44) -> 63.96 | L44: =(D44*D44)/B44 -> 0.01 | M44: =_xll.ErGamma(K44,L44) -> 0.51 | N44: =_xll.ErRunOutput(A44,M44) -> 0.51 | O44: coles online | P44: 20% of price per litre | Q44: =C73*M44*365*$A$66 -> 105,953,122 | AE44: Tax burden - the additional cost of beverage attributed to SSB tax. | AF44: =Q44 -> 105,953,122
A45: Total C3 cost | B45: =SUM(AF40:AF44) -> 645,074,576
A46: total tax per person | B46: =B45/A66 -> 31
A47: population tax per person | N47: =_xll.ErRunOutput(A47,B46) -> 31.0255
A48: population tax total output | N48: =_xll.ErRunOutput(A48,B45) -> 645,074,576
A50: Amount of tax paid
A51: Soft drinks taxes | B51: 20%
A52: Soft drinks prices | B52: Soft drinks per litre | C52: Sports drinks | D52: Sports drinks per litre | E52: energy drinks | F52: energy drinks per litre | G52: Fruit drinks | H52: Fruit drinks per litre | I52: Cordial | J52: Cordial per litre | K52: Source
A53: Coke 375ml | B53: $3.36 | C53: Gatorade 600ml | D53: $6.15 | E53: red bull 355ml can | F53: $11.32 | G53: mildura 1 litre | H53: $1.92 | I53: Cottees | J53: =5.27 -> $5.27 | K53: Coles online http://shop.coles.com.au/online/national
A54: 2litre | B54: $2.20 | C54: Gatorade 1l | D54: $4.40 | E54: red bull 250ml 6 pack | F54: $13.20 | G54: prima 6x200 | H54: =3.8/1200*1000 -> $3.17 | I54: Bickfords | J54: =5.65 -> $5.65
A55: mini can | B55: $5.71 | C55: powerade 600ml | D55: $6.15 | E55: monster 550ml | F55: $7.00 | I55: ribena | J55: =8.79 -> $8.79
A56: 1.25 litre | B56: $2.45 | I56: golden circle | J56: $2.20
A57: 600ml | B57: $3.00
A58: LA cola | B58: $0.75
A59: average/ litre | B59: =AVERAGE(B53:B58) -> $2.91 | D59: =AVERAGE(D53:D57) -> $5.57 | F59: =AVERAGE(F53:F57) -> $10.51 | H59: =AVERAGE(H53:H57) -> $2.54 | J59: =AVERAGE(J53:J57) -> $5.48
A60: Tax amount | B60: =B59*$B$51 -> $0.58 | D60: =D59*$B$51 -> $1.11 | F60: =F59*$B$51 -> $2.10 | H60: =H59*$B$51 -> $0.51 | J60: =J59*$B$51 -> $1.10
A61: Low value | B61: =B58*B51 -> $0.15 | D61: =D54*B51 -> $0.88 | F61: =F55*B51 -> $1.40 | H61: =H53*B51 -> $0.38 | J61: =J53*B51 -> $1.05
A62: High value | B62: =B55*B51 -> $1.14 | D62: =D55*B51 -> $1.23 | F62: =F54*B51 -> $2.64 | H62: =H54*B51 -> $0.63 | J62: =J55*B51 -> $1.76
A65: Population nos. age 2+ | B65: millions | C65: Source
A66: 20,791,786 | B66: =A66/1000000 -> 20.79 | C66: 3101.0 - Australian Demographic Statistics, Dec 2010
A68: Consumption pre-tax | B68: Pretax person daily consumption/litre | C68: Post tax person daily consumption/litre
A69: Soft drinks | B69: ='Calc-benefits Aus Pop '!C212/$B$75 -> 0.102 | C69: ='Calc-benefits Aus Pop '!C213/$B$75 -> 0.090
A70: Sports drinks | B70: ='Calc-benefits Aus Pop '!C219/$B$75 -> 0.008 | C70: ='Calc-benefits Aus Pop '!C220/$B$75 -> 0.007
A71: Energy Drinks | B71: ='Calc-benefits Aus Pop '!C226/$B$75 -> 0.005 | C71: ='Calc-benefits Aus Pop '!C227/$B$75 -> 0.004
A72: Cordial | B72: ='Calc-benefits Aus Pop '!C233/$B$75/10 -> 0.003 | C72: ='Calc-benefits Aus Pop '!C234/$B$75/10 -> 0.002
A73: Fruit drink | B73: ='Calc-benefits Aus Pop '!C241/$B$75 -> 0.037 | C73: ='Calc-benefits Aus Pop '!C242/$B$75 -> 0.027
A74: total | B74: =SUM(B69:B73) -> 0.15 | C74: ='Calc-benefits Aus Pop '!C248/$B$75 -> 0.000
A75: conversion to litres | B75: 1000
A79: Dead weight loss calculcations | B79: DWL =0.5 * (PostTaxPrice—PreTaxPrice)*(PreTaxQuantity—PostTaxQuantity)
B80: PreTaxPrice | C80: PostTaxPrice | D80: PreTaxQuantity | E80: PostTaxQuantity | F80: DWL | G80: ersatz
A81: fizzy drinks | B81: =B59 -> $2.91 | C81: =B81*1.2 -> $3.49 | D81: =B69*365*$A$66 -> 771,466,817 | E81: =C69*365*$A$66 -> 682,593,840 | F81: =0.5*(C81-B81)*(D81-E81) -> 25,876,848.57
A82: Sports drinks | B82: =D59 -> $5.57 | C82: =B82*1.2 -> $6.68 | D82: =B70*365*$A$66 -> 58,704,701 | E82: =C70*365*$A$66 -> 51,941,920 | F82: =0.5*(C82-B82)*(D82-E82) -> 3,764,615.09
A83: Energy Drinks | B83: =F59 -> $10.51 | C83: =B83*1.2 -> $12.61 | D83: 35,495,591 | E83: =C71*365*$A$66 -> 31,406,499 | F83: 4,296,272.72
A84: Cordial | B84: =J59 -> $5.48 | C84: =B84*1.2 -> $6.57 | D84: 24,334,871 | E84: =C72*365*$A$66 -> 16,248,393 | F84: 4,429,368.07
A85: Fruit drink | B85: =H59 -> $2.54 | C85: =B85*1.2 -> $3.05 | D85: 279,591,655 | E85: =C73*365*$A$66 -> 208,295,783 | F85: 18,132,916.79
A86: total | F86: =SUM(F81:F85) -> 56,500,021 | G86: =_xll.ErRunOutput(F80,F86) -> 56,500,021
A90: Administration costs (Long 2015)
A92: Resource | C92: uncertainty range | E92: Standard error | F92: Source | I92: AUD conversions
A93: Government/industry administration and compliance time costs per million people per year (FTE) | B93: 0.32 | C93: 0.1 | D93: 0.54 | F93: based on data from personal communications with Washington and West Virginia State Departments of Revenue;
A94: Government/industry field audit time costs per million people per year (FTE) | B94: 0.3 | C94: 0.24 | D94: 0.35 | F94: based on an estimate of field audit time ( 25%) from a personal communication with West Virginia State Department of Revenue
A95: Fied audit direct costs per million people per year ($) | B95: $9,170 | C95: 6450 | D95: 11900 | F95: Samples drawn from a gamma distribution. (5th Percentile 6871, 50th percentile $9161, 95th percentile $11,460 )based on an estimate of field audit direct cost ( 25%) from a personal communication with West Virginia State Department of Revenue | I95: =6871*B104 -> $10,325.44 | J95: =9161*B104 -> $13,766.76 | K95: =11460*B104 -> $17,221.60
A96: Fied audit direct costs per million people per year ($) AUD | B96: =B95*$B$104 -> $13,780.28 | C96: =I95 -> $10,325.44 | D96: =K95 -> $17,221.60 | F96: AUD conversion
A97: Tax certification system operating costs per million people per year ($) | B97: 11900 | C97: 8360 | D97: 15400 | F97: Samples drawn from a gamma distribution. (5th percentile = $6,871; 50th Percentile 9,161, 95th Percentile $11,460) based on an estimate of field audit direct cost ( 25%) from a personal communication with West Virginia State Department of Revenue
A98: Tax certification system operating costs per million people per year ($) AUD | B98: =B97*$B$104 -> $17,883 | C98: =C97*$B$104 -> $12,563 | D98: =D97*$B$104 -> $23,142 | F98: AUD conversion
A99: Accountant (govt) weekly | B99: 1,432.00 | E99: 62.5 | F99: ABS 6306 employee earnings and hours, 2211 Accountant (all methods of setting pay) CI individual agreement, collective agreement
A100: Accountant (govt) yearly inc oncosts | B100: =B99*$B$103*52 -> 84,889 | C100: =C99*$B$103*52 -> 0 | D100: =D99*$B$103*52 -> 0 | E100: =E99*52 -> 3250 | F100: Per capita FTE data from Long et al 2015, ABS mean salary for accountants and auditors code 2211, 2212. Assume 14% non-salary benefits | I100: =B99*52 -> 74464 | J100: =1016*52 -> 52832 | K100: =1759*52 -> 91468
A101: Auditor salary (industry) weekly | B101: 1,660.30 | E101: 97 | F101: ABS 6306 employee earnings and hours, 2212 Auditors, company secretaries and corporate treasurers. (all methods of setting pay) CI individual agreement, collective agreement
A102: Auditor salary (industry) yearly inc oncosts | B102: =B101*$B$103*52 -> 98,423 | C102: =C101*$B$103*52 -> 0 | D102: =D101*$B$103*52 -> 0 | E102: =97*52 -> 5044 | F102: Per capita FTE data from Long et al 2015, ABS mean salary for accountants and auditors code 2211, 2212. Assume 14% non-salary benefits | I102: =B101*52 -> 86335.6 | J102: =1593*52 -> 82836 | K102: =1758*52 -> 91416
A103: Oncosts | B103: 1.14 | F103: ABS labour costs 6348.0 Australia. professional scientific and technical services. Include superannuation and payroll tax
A104: Purchasing power parities | B104: 1.502757 | F104: Organization for Economic Co-operation and Development (OECD) purchasing power parity rate per US dollar as at 31 December 2010 for http://stats.oecd.org/Index.aspx?datasetcode=SNA_TABLE4
A107: Government
B108: Number of Items per Million People | C108: Cost per Item (dollars) | D108: Total Cost per Million People ($) | E108: Total National Annual Cost annual cost (dollars)
A109: Govt tax auditor | B109: 0.32 | C109: =$B$100 -> $84,889 | D109: =B109*C109 -> $27,164 | E109: =D109*$B$66 -> $564,798
A110: Field audit compliance salary costs | B110: 0.30 | C110: =$B$100 -> $84,889 | D110: =B110*C110 -> $25,042 | E110: =D110*$B$66 -> $520,673 | F110: Average per capita FTE data from Long et al 2015, ABS mean salary for accountants and auditors code 2211, 2212. Assume 30% non-salary benefits
A111: Field audit direct costs | B111: 1 | D111: $13,800 | E111: =D111*$B$66 -> $286,927 | F111: Per capita FTE data from Long et al 2015, ABS mean salary for accountants and auditors code 2211, 2212. Assume 14% non-salary benefits
A112: Tax certification system operating costs | B112: 1 | D112: $17,900 | E112: =D112*$B$66 -> $372,173 | F112: Long et al Per capita direct field audit costs from WV State Department of Revenue converted to AUD 2010
A113: Subtotal | E113: =SUM(E109:E112) -> $1,744,570 | F113: Long et al Per capita tax certification system operating costs from WV State Department of Revenue converted to AUD 2010
A116: Industry
B117: Number of Items per Million People | C117: Cost per Item (dollars) | D117: Total Cost per Million People ($) | E117: Total National Annual Cost annual cost (dollars)
A118: Govt tax auditor | B118: 0.32 | C118: =$B$102 -> $98,423 | D118: =B118*C118 -> $31,495 | E118: =D118*$B$66 -> $654,842
A119: Field audit compliance salary costs | B119: 0.30 | C119: =$B$102 -> $98,423 | D119: =B119*C119 -> $29,035 | E119: =D119*$B$66 -> $603,682
A120: Field audit direct costs | B120: 1 | D120: $13,800 | E120: =D120*$B$66 -> $286,927
A121: Tax certification system operating costs | B121: 1 | D121: $17,900 | E121: =D121*$B$66 -> $372,173
A122: Subtotal | E122: =SUM(E118:E121) -> $1,917,624
A125: Total cost legislation | B125: 2015 | C125: 2014 | D125: 2013 | E125: 2012 | F125: 2011 | G125: 2010 | H125: average | I125: Source | J125: notes
A126: Cost of Parliamentarians | B126: 4,424,834 | C126: 4,103,662 | D126: 4,026,367 | E126: 3,344,914 | F126: 2,894,793 | G126: 2,807,536 | H126: 3,600,351 | I126: Assume 19% of time | J126: time spent considering legislation/yearly total working hours
A127: Senate annual expenses | B127: 23,909,000 | C127: 22,096,000 | D127: 22,283,000 | E127: 25,192,000 | F127: 24,132,000 | G127: 23,962,000 | H127: 23,595,667 | I127: http://www.aph.gov.au/About_Parliament/Parliamentary_Departments/Department_of_the_Senate/Annual_Reports | J127: *Provide advisory and administrative support services to enable the Senate and senators to fulfil their representative and legislative duties.
A128: House of representatives annual expenses | B128: 25,667,000 | C128: 24,409,000 | D128: 25,219,000 | E128: 26,871,000 | F128: 24,617,000 | G128: 28,019,000 | H128: 25,800,333 | I128: Annual report appendix outcome1 http://www.aph.gov.au/About_Parliament/Parliamentary_Departments/Department_of_the_House_of_Representatives/Annual_Report | J128: About half of the total sitting time of the House is spent considering bills, that is, proposed laws.
A129: Office of parliamenary counsel -legislation drafting and publication | B129: 21,598,000 | C129: 21,368,000 | D129: 19,029,000 | E129: 11,793,000 | F129: 10,548,000 | G129: 9,804,000 | H129: 15,690,000 | I129: https://www.ag.gov.au/Publications/Budgets/Pages/default.aspx | J129: 2010 p470. 2015 p 487
A130: Parliamentary input to law-making total | B130: 75,598,834 | C130: 71,976,662 | D130: 70,557,367 | E130: 67,200,914 | F130: 62,191,793 | G130: 64,592,536 | H130: 68,686,351
A131: Policy advice relating to laws | B131: 39,443,001 | C131: 39,443,001 | D131: 39,443,001 | E131: 39,443,001 | F131: 39,443,001 | G131: 39,443,001 | H131: 39,443,001 | I131: http://www.who.int/bulletin/volumes/90/7/BLT-11-097584-table-T3.html
A132: total cost all legislation | B132: 115,041,835 | C132: 111,419,663 | D132: 110,000,368 | E132: 106,643,915 | F132: 101,634,794 | G132: 104,035,537 | H132: 108,129,352 | I132: sum of parliamentarians, senate, reps,OPC
A133: no. bills passed by senate | B133: 181 | C133: 139 | D133: 149 | E133: 207 | F133: 188 | G133: 156 | H133: 170 | I133: http://www.aph.gov.au/Parliamentary_Business/Statistics/Senate_StatsNet/legislation/timespent/2013
A134: total cost/no. of bills passed | B134: 635,590 | C134: 801,580 | D134: 738,258 | E134: 515,188 | F134: 540,611 | G134: 666,894 | H134: 649,687 | I134: total cost/no. of bills passed
A135: With cost of Regulatory Impact statement | B135: 1,075,590 | C135: 1,241,580 | D135: 1,178,258 | E135: 955,188 | F135: 980,611 | G135: 1,106,894 | H135: 1,089,687

Sheet Intervention costs inputs
A1: 20% tax total pop | D1: 0.03 | E1: Discount rate
B3: Total discounted C1 cost | C3: =SUM(C9:C108) -> 0 | E3: Total discounted C2a cost | F3: =SUM(F9:F108) -> 57,941,566 | H3: Total discounted C2b cost | I3: =SUM(I9:I108) -> 62,511,048 | K3: Total discounted C3 cost | L3: =SUM(L9:L108) -> 5,667,695,485 | N3: Total intervention costs | P3: =SUM(I3,F3,C3) -> 120,452,614
E4: 10 year discounted C2a cost | F4: =SUM(F9:F18) -> 16,488,467 | H4: 10 year discounted C2b cost | I4: =SUM(I9:I18) -> 16,931,610 | N4: 10 year intervention costs | P4: =F4+I4 -> 33,420,077
N5: 10 year ersatz | P5: =_xll.ErRunOutput(N4,P4) -> 33,420,077
N6: Total Ersatz output | P6: =_xll.ErRunOutput(N3, P3) -> 120452614.4
A7: Year | B7: C1 costs | E7: C2a costs | H7: C2b costs | K7: C3 costs | N7: 10 year taxation | P7: =_xll.ErOutput(N7,L3) -> 5,667,695,485
B8: Mean | C8: Discounted costs | E8: Mean | F8: Discounted costs | H8: Mean | I8: Discounted cost | K8: Mean | L8: Discounted cost | N8: Discount factor
A9: 1 | C9: =B9*N9 -> 0 | E9: ='Calc-costs Aus pop '!B19 -> 2,842,315 | F9: =E9*N9 -> 2,842,315 | H9: ='Calc-costs Aus pop '!$B$32 -> 1,927,089 | I9: =H9*N9 -> 1,927,089 | K9: ='Calc-costs Aus pop '!$N$48 -> 645,074,576 | L9: =K9*N9 -> 645,074,576 | N9: =1/((1+$D$1)^(A9-1)) -> 1.00
A10: 2 | C10: =B10*N10 -> 0 | E10: ='Calc-costs Aus pop '!$B$22 -> 1,752,628 | F10: =E10*N10 -> 1,701,580 | H10: ='Calc-costs Aus pop '!$B$32 -> 1,927,089 | I10: =H10*N10 -> 1,870,960 | K10: ='Calc-costs Aus pop '!$N$48 -> 645,074,576 | L10: =K10*N10 -> 626,285,996 | N10: 0.97
A11: 3 | C11: 0 | E11: ='Calc-costs Aus pop '!$B$22 -> 1,752,628 | F11: 1,652,020 | H11: ='Calc-costs Aus pop '!$B$32 -> 1,927,089 | I11: 1,816,466 | K11: ='Calc-costs Aus pop '!$N$48 -> 645,074,576 | L11: 608,044,656 | N11: 0.94
A12: 4 | C12: 0 | E12: ='Calc-costs Aus pop '!$B$22 -> 1,752,628 | F12: 1,603,903 | H12: ='Calc-costs Aus pop '!$B$32 -> 1,927,089 | I12: 1,763,559 | K12: ='Calc-costs Aus pop '!$N$48 -> 645,074,576 | L12: 590,334,618 | N12: 0.92
A13: 5 | C13: 0 | E13: ='Calc-costs Aus pop '!$B$22 -> 1,752,628 | F13: 1,557,187 | H13: ='Calc-costs Aus pop '!$B$32 -> 1,927,089 | I13: 1,712,193 | K13: ='Calc-costs Aus pop '!$N$48 -> 645,074,576 | L13: 573,140,405 | N13: 0.89
A14: 6 | C14: 0 | E14: ='Calc-costs Aus pop '!$B$22 -> 1,752,628 | F14: 1,511,832 | H14: ='Calc-costs Aus pop '!$B$32 -> 1,927,089 | I14: 1,662,324 | K14: ='Calc-costs Aus pop '!$N$48 -> 645,074,576 | L14: 556,446,996 | N14: 0.86
A15: 7 | C15: 0 | E15: ='Calc-costs Aus pop '!$B$22 -> 1,752,628 | F15: 1,467,798 | H15: ='Calc-costs Aus pop '!$B$32 -> 1,927,089 | I15: 1,613,906 | K15: ='Calc-costs Aus pop '!$N$48 -> 645,074,576 | L15: 540,239,802 | N15: 0.84
A16: 8 | C16: 0 | E16: ='Calc-costs Aus pop '!$B$22 -> 1,752,628 | F16: 1,425,047 | H16: ='Calc-costs Aus pop '!$B$32 -> 1,927,089 | I16: 1,566,899 | K16: ='Calc-costs Aus pop '!$N$48 -> 645,074,576 | L16: 524,504,662 | N16: 0.81
A17: 9 | C17: 0 | E17: ='Calc-costs Aus pop '!$B$22 -> 1,752,628 | F17: 1,383,541 | H17: ='Calc-costs Aus pop '!$B$32 -> 1,927,089 | I17: 1,521,262 | K17: ='Calc-costs Aus pop '!$N$48 -> 645,074,576 | L17: 509,227,827 | N17: 0.79
A18: 10 | C18: 0 | E18: ='Calc-costs Aus pop '!$B$22 -> 1,752,628 | F18: 1,343,243 | H18: ='Calc-costs Aus pop '!$B$32 -> 1,927,089 | I18: 1,476,953 | K18: ='Calc-costs Aus pop '!$N$48 -> 645,074,576 | L18: 494,395,948 | N18: 0.77
A19: 11 | C19: 0 | E19: ='Calc-costs Aus pop '!$B$22 -> 1,752,628 | F19: 1,304,120 | H19: ='Calc-costs Aus pop '!$B$32 -> 1,927,089 | I19: 1,433,935 | L19: 0 | N19: 0.74
A20: 12 | C20: 0 | E20: ='Calc-costs Aus pop '!$B$22 -> 1,752,628 | F20: 1,266,136 | H20: ='Calc-costs Aus pop '!$B$32 -> 1,927,089 | I20: 1,392,170 | L20: 0 | N20: 0.72
A21: 13 | C21: 0 | E21: ='Calc-costs Aus pop '!$B$22 -> 1,752,628 | F21: 1,229,258 | H21: ='Calc-costs Aus pop '!$B$32 -> 1,927,089 | I21: 1,351,621 | L21: 0 | N21: 0.70
A22: 14 | C22: 0 | E22: ='Calc-costs Aus pop '!$B$22 -> 1,752,628 | F22: 1,193,454 | H22: ='Calc-costs Aus pop '!$B$32 -> 1,927,089 | I22: 1,312,254 | L22: 0 | N22: 0.68
A23: 15 | C23: 0 | E23: ='Calc-costs Aus pop '!$B$22 -> 1,752,628 | F23: 1,158,694 | H23: ='Calc-costs Aus pop '!$B$32 -> 1,927,089 | I23: 1,274,033 | L23: 0 | N23: 0.66
A24: 16 | C24: 0 | E24: ='Calc-costs Aus pop '!$B$22 -> 1,752,628 | F24: 1,124,945 | H24: ='Calc-costs Aus pop '!$B$32 -> 1,927,089 | I24: 1,236,925 | L24: 0 | N24: 0.64
A25: 17 | C25: 0 | E25: ='Calc-costs Aus pop '!$B$22 -> 1,752,628 | F25: 1,092,180 | H25: ='Calc-costs Aus pop '!$B$32 -> 1,927,089 | I25: 1,200,898 | L25: 0 | N25: 0.62
A26: 18 | C26: 0 | E26: ='Calc-costs Aus pop '!$B$22 -> 1,752,628 | F26: 1,060,369 | H26: ='Calc-costs Aus pop '!$B$32 -> 1,927,089 | I26: 1,165,920 | L26: 0 | N26: 0.61
A27: 19 | C27: 0 | E27: ='Calc-costs Aus pop '!$B$22 -> 1,752,628 | F27: 1,029,484 | H27: ='Calc-costs Aus pop '!$B$32 -> 1,927,089 | I27: 1,131,961 | L27: 0 | N27: 0.59
A28: 20 | C28: 0 | E28: ='Calc-costs Aus pop '!$B$22 -> 1,752,628 | F28: 999,499 | H28: ='Calc-costs Aus pop '!$B$32 -> 1,927,089 | I28: 1,098,992 | L28: 0 | N28: 0.57
A29: 21 | C29: 0 | E29: ='Calc-costs Aus pop '!$B$22 -> 1,752,628 | F29: 970,388 | H29: ='Calc-costs Aus pop '!$B$32 -> 1,927,089 | I29: 1,066,982 | L29: 0 | N29: 0.55
A30: 22 | C30: 0 | E30: ='Calc-costs Aus pop '!$B$22 -> 1,752,628 | F30: 942,124 | H30: ='Calc-costs Aus pop '!$B$32 -> 1,927,089 | I30: 1,035,905 | L30: 0 | N30: 0.54
A31: 23 | C31: 0 | E31: ='Calc-costs Aus pop '!$B$22 -> 1,752,628 | F31: 914,683 | H31: ='Calc-costs Aus pop '!$B$32 -> 1,927,089 | I31: 1,005,733 | L31: 0 | N31: 0.52
A32: 24 | C32: 0 | E32: ='Calc-costs Aus pop '!$B$22 -> 1,752,628 | F32: 888,042 | H32: ='Calc-costs Aus pop '!$B$32 -> 1,927,089 | I32: 976,440 | L32: 0 | N32: 0.51
A33: 25 | C33: 0 | E33: ='Calc-costs Aus pop '!$B$22 -> 1,752,628 | F33: 862,177 | H33: ='Calc-costs Aus pop '!$B$32 -> 1,927,089 | I33: 948,000 | L33: 0 | N33: 0.49
A34: 26 | C34: 0 | E34: ='Calc-costs Aus pop '!$B$22 -> 1,752,628 | F34: 837,065 | H34: ='Calc-costs Aus pop '!$B$32 -> 1,927,089 | I34: 920,388 | L34: 0 | N34: 0.48
A35: 27 | C35: 0 | E35: ='Calc-costs Aus pop '!$B$22 -> 1,752,628 | F35: 812,684 | H35: ='Calc-costs Aus pop '!$B$32 -> 1,927,089 | I35: 893,581 | L35: 0 | N35: 0.46
A36: 28 | C36: 0 | E36: ='Calc-costs Aus pop '!$B$22 -> 1,752,628 | F36: 789,014 | H36: ='Calc-costs Aus pop '!$B$32 -> 1,927,089 | I36: 867,554 | L36: 0 | N36: 0.45
A37: 29 | C37: 0 | E37: ='Calc-costs Aus pop '!$B$22 -> 1,752,628 | F37: 766,033 | H37: ='Calc-costs Aus pop '!$B$32 -> 1,927,089 | I37: 842,286 | L37: 0 | N37: 0.44
A38: 30 | C38: 0 | E38: ='Calc-costs Aus pop '!$B$22 -> 1,752,628 | F38: 743,721 | H38: ='Calc-costs Aus pop '!$B$32 -> 1,927,089 | I38: 817,753 | L38: 0 | N38: 0.42
A39: 31 | C39: 0 | E39: ='Calc-costs Aus pop '!$B$22 -> 1,752,628 | F39: 722,059 | H39: ='Calc-costs Aus pop '!$B$32 -> 1,927,089 | I39: 793,935 | L39: 0 | N39: 0.41
A40: 32 | C40: 0 | E40: ='Calc-costs Aus pop '!$B$22 -> 1,752,628 | F40: 701,029 | H40: ='Calc-costs Aus pop '!$B$32 -> 1,927,089 | I40: 770,811 | L40: 0 | N40: 0.40
A41: 33 | C41: 0 | E41: ='Calc-costs Aus pop '!$B$22 -> 1,752,628 | F41: 680,610 | H41: ='Calc-costs Aus pop '!$B$32 -> 1,927,089 | I41: 748,360 | L41: 0 | N41: 0.39
A42: 34 | C42: 0 | E42: ='Calc-costs Aus pop '!$B$22 -> 1,752,628 | F42: 660,787 | H42: ='Calc-costs Aus pop '!$B$32 -> 1,927,089 | I42: 726,563 | L42: 0 | N42: 0.38
A43: 35 | C43: 0 | E43: ='Calc-costs Aus pop '!$B$22 -> 1,752,628 | F43: 641,541 | H43: ='Calc-costs Aus pop '!$B$32 -> 1,927,089 | I43: 705,401 | L43: 0 | N43: 0.37
A44: 36 | C44: 0 | E44: ='Calc-costs Aus pop '!$B$22 -> 1,752,628 | F44: 622,855 | H44: ='Calc-costs Aus pop '!$B$32 -> 1,927,089 | I44: 684,855 | L44: 0 | N44: 0.36
A45: 37 | C45: 0 | E45: ='Calc-costs Aus pop '!$B$22 -> 1,752,628 | F45: 604,713 | H45: ='Calc-costs Aus pop '!$B$32 -> 1,927,089 | I45: 664,908 | L45: 0 | N45: 0.35
A46: 38 | C46: 0 | E46: ='Calc-costs Aus pop '!$B$22 -> 1,752,628 | F46: 587,100 | H46: ='Calc-costs Aus pop '!$B$32 -> 1,927,089 | I46: 645,542 | L46: 0 | N46: 0.33
A47: 39 | C47: 0 | E47: ='Calc-costs Aus pop '!$B$22 -> 1,752,628 | F47: 570,000 | H47: ='Calc-costs Aus pop '!$B$32 -> 1,927,089 | I47: 626,740 | L47: 0 | N47: 0.33
A48: 40 | C48: 0 | E48: ='Calc-costs Aus pop '!$B$22 -> 1,752,628 | F48: 553,398 | H48: ='Calc-costs Aus pop '!$B$32 -> 1,927,089 | I48: 608,485 | L48: 0 | N48: 0.32
A49: 41 | C49: 0 | E49: ='Calc-costs Aus pop '!$B$22 -> 1,752,628 | F49: 537,280 | H49: ='Calc-costs Aus pop '!$B$32 -> 1,927,089 | I49: 590,762 | L49: 0 | N49: 0.31
A50: 42 | C50: 0 | E50: ='Calc-costs Aus pop '!$B$22 -> 1,752,628 | F50: 521,631 | H50: ='Calc-costs Aus pop '!$B$32 -> 1,927,089 | I50: 573,556 | L50: 0 | N50: 0.30
A51: 43 | C51: 0 | E51: ='Calc-costs Aus pop '!$B$22 -> 1,752,628 | F51: 506,438 | H51: ='Calc-costs Aus pop '!$B$32 -> 1,927,089 | I51: 556,850 | L51: 0 | N51: 0.29
A52: 44 | C52: 0 | E52: ='Calc-costs Aus pop '!$B$22 -> 1,752,628 | F52: 491,687 | H52: ='Calc-costs Aus pop '!$B$32 -> 1,927,089 | I52: 540,631 | L52: 0 | N52: 0.28
A53: 45 | C53: 0 | E53: ='Calc-costs Aus pop '!$B$22 -> 1,752,628 | F53: 477,366 | H53: ='Calc-costs Aus pop '!$B$32 -> 1,927,089 | I53: 524,885 | L53: 0 | N53: 0.27
A54: 46 | C54: 0 | E54: ='Calc-costs Aus pop '!$B$22 -> 1,752,628 | F54: 463,463 | H54: ='Calc-costs Aus pop '!$B$32 -> 1,927,089 | I54: 509,597 | L54: 0 | N54: 0.26
A55: 47 | C55: 0 | E55: ='Calc-costs Aus pop '!$B$22 -> 1,752,628 | F55: 449,964 | H55: ='Calc-costs Aus pop '!$B$32 -> 1,927,089 | I55: 494,754 | L55: 0 | N55: 0.26
A56: 48 | C56: 0 | E56: ='Calc-costs Aus pop '!$B$22 -> 1,752,628 | F56: 436,858 | H56: ='Calc-costs Aus pop '!$B$32 -> 1,927,089 | I56: 480,344 | L56: 0 | N56: 0.25
A57: 49 | C57: 0 | E57: ='Calc-costs Aus pop '!$B$22 -> 1,752,628 | F57: 424,134 | H57: ='Calc-costs Aus pop '!$B$32 -> 1,927,089 | I57: 466,353 | L57: 0 | N57: 0.24
A58: 50 | C58: 0 | E58: ='Calc-costs Aus pop '!$B$22 -> 1,752,628 | F58: 411,780 | H58: ='Calc-costs Aus pop '!$B$32 -> 1,927,089 | I58: 452,770 | L58: 0 | N58: 0.23
A59: 51 | C59: 0 | E59: ='Calc-costs Aus pop '!$B$22 -> 1,752,628 | F59: 399,787 | H59: ='Calc-costs Aus pop '!$B$32 -> 1,927,089 | I59: 439,583 | L59: 0 | N59: 0.23
A60: 52 | C60: 0 | E60: ='Calc-costs Aus pop '!$B$22 -> 1,752,628 | F60: 388,143 | H60: ='Calc-costs Aus pop '!$B$32 -> 1,927,089 | I60: 426,779 | L60: 0 | N60: 0.22
A61: 53 | C61: 0 | E61: ='Calc-costs Aus pop '!$B$22 -> 1,752,628 | F61: 376,837 | H61: ='Calc-costs Aus pop '!$B$32 -> 1,927,089 | I61: 414,349 | L61: 0 | N61: 0.22
A62: 54 | C62: 0 | E62: ='Calc-costs Aus pop '!$B$22 -> 1,752,628 | F62: 365,862 | H62: ='Calc-costs Aus pop '!$B$32 -> 1,927,089 | I62: 402,280 | L62: 0 | N62: 0.21
A63: 55 | C63: 0 | E63: ='Calc-costs Aus pop '!$B$22 -> 1,752,628 | F63: 355,205 | H63: ='Calc-costs Aus pop '!$B$32 -> 1,927,089 | I63: 390,563 | L63: 0 | N63: 0.20
A64: 56 | C64: 0 | E64: ='Calc-costs Aus pop '!$B$22 -> 1,752,628 | F64: 344,860 | H64: ='Calc-costs Aus pop '!$B$32 -> 1,927,089 | I64: 379,188 | L64: 0 | N64: 0.20
A65: 57 | C65: 0 | E65: ='Calc-costs Aus pop '!$B$22 -> 1,752,628 | F65: 334,815 | H65: ='Calc-costs Aus pop '!$B$32 -> 1,927,089 | I65: 368,143 | L65: 0 | N65: 0.19
A66: 58 | C66: 0 | E66: ='Calc-costs Aus pop '!$B$22 -> 1,752,628 | F66: 325,063 | H66: ='Calc-costs Aus pop '!$B$32 -> 1,927,089 | I66: 357,421 | L66: 0 | N66: 0.19
A67: 59 | C67: 0 | E67: ='Calc-costs Aus pop '!$B$22 -> 1,752,628 | F67: 315,595 | H67: ='Calc-costs Aus pop '!$B$32 -> 1,927,089 | I67: 347,011 | L67: 0 | N67: 0.18
A68: 60 | C68: 0 | E68: ='Calc-costs Aus pop '!$B$22 -> 1,752,628 | F68: 306,403 | H68: ='Calc-costs Aus pop '!$B$32 -> 1,927,089 | I68: 336,903 | L68: 0 | N68: 0.17
A69: 61 | C69: 0 | E69: ='Calc-costs Aus pop '!$B$22 -> 1,752,628 | F69: 297,479 | H69: ='Calc-costs Aus pop '!$B$32 -> 1,927,089 | I69: 327,091 | L69: 0 | N69: 0.17
A70: 62 | C70: 0 | E70: ='Calc-costs Aus pop '!$B$22 -> 1,752,628 | F70: 288,815 | H70: ='Calc-costs Aus pop '!$B$32 -> 1,927,089 | I70: 317,564 | L70: 0 | N70: 0.16
A71: 63 | C71: 0 | E71: ='Calc-costs Aus pop '!$B$22 -> 1,752,628 | F71: 280,402 | H71: ='Calc-costs Aus pop '!$B$32 -> 1,927,089 | I71: 308,314 | L71: 0 | N71: 0.16
A72: 64 | C72: 0 | E72: ='Calc-costs Aus pop '!$B$22 -> 1,752,628 | F72: 272,235 | H72: ='Calc-costs Aus pop '!$B$32 -> 1,927,089 | I72: 299,334 | L72: 0 | N72: 0.16
A73: 65 | C73: 0 | E73: ='Calc-costs Aus pop '!$B$22 -> 1,752,628 | F73: 264,306 | H73: ='Calc-costs Aus pop '!$B$32 -> 1,927,089 | I73: 290,616 | L73: 0 | N73: =1/((1+$D$1)^(A73-1)) -> 0.15
A74: 66 | C74: =B74*N74 -> 0 | E74: ='Calc-costs Aus pop '!$B$22 -> 1,752,628 | F74: =E74*N74 -> 256,608 | H74: ='Calc-costs Aus pop '!$B$32 -> 1,927,089 | I74: =H74*N74 -> 282,151 | L74: =K74*N74 -> 0 | N74: 0.15
A75: 67 | C75: 0 | E75: ='Calc-costs Aus pop '!$B$22 -> 1,752,628 | F75: 249,134 | H75: ='Calc-costs Aus pop '!$B$32 -> 1,927,089 | I75: 273,933 | L75: 0 | N75: 0.14
A76: 68 | C76: 0 | E76: ='Calc-costs Aus pop '!$B$22 -> 1,752,628 | F76: 241,878 | H76: ='Calc-costs Aus pop '!$B$32 -> 1,927,089 | I76: 265,955 | L76: 0 | N76: 0.14
A77: 69 | C77: 0 | E77: ='Calc-costs Aus pop '!$B$22 -> 1,752,628 | F77: 234,833 | H77: ='Calc-costs Aus pop '!$B$32 -> 1,927,089 | I77: 258,208 | L77: 0 | N77: 0.13
A78: 70 | C78: 0 | E78: ='Calc-costs Aus pop '!$B$22 -> 1,752,628 | F78: 227,993 | H78: ='Calc-costs Aus pop '!$B$32 -> 1,927,089 | I78: 250,688 | L78: 0 | N78: 0.13
A79: 71 | C79: 0 | E79: ='Calc-costs Aus pop '!$B$22 -> 1,752,628 | F79: 221,352 | H79: ='Calc-costs Aus pop '!$B$32 -> 1,927,089 | I79: 243,386 | L79: 0 | N79: 0.13
A80: 72 | C80: 0 | E80: ='Calc-costs Aus pop '!$B$22 -> 1,752,628 | F80: 214,905 | H80: ='Calc-costs Aus pop '!$B$32 -> 1,927,089 | I80: 236,297 | L80: 0 | N80: 0.12
A81: 73 | C81: 0 | E81: ='Calc-costs Aus pop '!$B$22 -> 1,752,628 | F81: 208,646 | H81: ='Calc-costs Aus pop '!$B$32 -> 1,927,089 | I81: 229,415 | L81: 0 | N81: 0.12
A82: 74 | C82: 0 | E82: ='Calc-costs Aus pop '!$B$22 -> 1,752,628 | F82: 202,569 | H82: ='Calc-costs Aus pop '!$B$32 -> 1,927,089 | I82: 222,733 | L82: 0 | N82: 0.12
A83: 75 | C83: 0 | E83: ='Calc-costs Aus pop '!$B$22 -> 1,752,628 | F83: 196,669 | H83: ='Calc-costs Aus pop '!$B$32 -> 1,927,089 | I83: 216,245 | L83: 0 | N83: 0.11
A84: 76 | C84: 0 | E84: ='Calc-costs Aus pop '!$B$22 -> 1,752,628 | F84: 190,940 | H84: ='Calc-costs Aus pop '!$B$32 -> 1,927,089 | I84: 209,947 | L84: 0 | N84: 0.11
A85: 77 | C85: 0 | E85: ='Calc-costs Aus pop '!$B$22 -> 1,752,628 | F85: 185,379 | H85: ='Calc-costs Aus pop '!$B$32 -> 1,927,089 | I85: 203,832 | L85: 0 | N85: 0.11
A86: 78 | C86: 0 | E86: ='Calc-costs Aus pop '!$B$22 -> 1,752,628 | F86: 179,980 | H86: ='Calc-costs Aus pop '!$B$32 -> 1,927,089 | I86: 197,895 | L86: 0 | N86: 0.10
A87: 79 | C87: 0 | E87: ='Calc-costs Aus pop '!$B$22 -> 1,752,628 | F87: 174,738 | H87: ='Calc-costs Aus pop '!$B$32 -> 1,927,089 | I87: 192,131 | L87: 0 | N87: 0.10
A88: 80 | C88: 0 | E88: ='Calc-costs Aus pop '!$B$22 -> 1,752,628 | F88: 169,648 | H88: ='Calc-costs Aus pop '!$B$32 -> 1,927,089 | I88: 186,535 | L88: 0 | N88: 0.10
A89: 81 | C89: 0 | E89: ='Calc-costs Aus pop '!$B$22 -> 1,752,628 | F89: 164,707 | H89: ='Calc-costs Aus pop '!$B$32 -> 1,927,089 | I89: 181,102 | L89: 0 | N89: 0.09
A90: 82 | C90: 0 | E90: ='Calc-costs Aus pop '!$B$22 -> 1,752,628 | F90: 159,910 | H90: ='Calc-costs Aus pop '!$B$32 -> 1,927,089 | I90: 175,827 | L90: 0 | N90: 0.09
A91: 83 | C91: 0 | E91: ='Calc-costs Aus pop '!$B$22 -> 1,752,628 | F91: 155,252 | H91: ='Calc-costs Aus pop '!$B$32 -> 1,927,089 | I91: 170,706 | L91: 0 | N91: 0.09
A92: 84 | C92: 0 | E92: ='Calc-costs Aus pop '!$B$22 -> 1,752,628 | F92: 150,730 | H92: ='Calc-costs Aus pop '!$B$32 -> 1,927,089 | I92: 165,734 | L92: 0 | N92: 0.09
A93: 85 | C93: 0 | E93: ='Calc-costs Aus pop '!$B$22 -> 1,752,628 | F93: 146,340 | H93: ='Calc-costs Aus pop '!$B$32 -> 1,927,089 | I93: 160,907 | L93: 0 | N93: 0.08
A94: 86 | C94: 0 | E94: ='Calc-costs Aus pop '!$B$22 -> 1,752,628 | F94: 142,078 | H94: ='Calc-costs Aus pop '!$B$32 -> 1,927,089 | I94: 156,220 | L94: 0 | N94: 0.08
A95: 87 | C95: 0 | E95: ='Calc-costs Aus pop '!$B$22 -> 1,752,628 | F95: 137,939 | H95: ='Calc-costs Aus pop '!$B$32 -> 1,927,089 | I95: 151,670 | L95: 0 | N95: 0.08
A96: 88 | C96: 0 | E96: ='Calc-costs Aus pop '!$B$22 -> 1,752,628 | F96: 133,922 | H96: ='Calc-costs Aus pop '!$B$32 -> 1,927,089 | I96: 147,253 | L96: 0 | N96: 0.08
A97: 89 | C97: 0 | E97: ='Calc-costs Aus pop '!$B$22 -> 1,752,628 | F97: 130,021 | H97: ='Calc-costs Aus pop '!$B$32 -> 1,927,089 | I97: 142,964 | L97: 0 | N97: 0.07
A98: 90 | C98: 0 | E98: ='Calc-costs Aus pop '!$B$22 -> 1,752,628 | F98: 126,234 | H98: ='Calc-costs Aus pop '!$B$32 -> 1,927,089 | I98: 138,800 | L98: 0 | N98: 0.07
A99: 91 | C99: 0 | E99: ='Calc-costs Aus pop '!$B$22 -> 1,752,628 | F99: 122,557 | H99: ='Calc-costs Aus pop '!$B$32 -> 1,927,089 | I99: 134,757 | L99: 0 | N99: 0.07
A100: 92 | C100: 0 | E100: ='Calc-costs Aus pop '!$B$22 -> 1,752,628 | F100: 118,988 | H100: ='Calc-costs Aus pop '!$B$32 -> 1,927,089 | I100: 130,832 | L100: 0 | N100: 0.07
A101: 93 | C101: 0 | E101: ='Calc-costs Aus pop '!$B$22 -> 1,752,628 | F101: 115,522 | H101: ='Calc-costs Aus pop '!$B$32 -> 1,927,089 | I101: 127,021 | L101: 0 | N101: 0.07
A102: 94 | C102: 0 | E102: ='Calc-costs Aus pop '!$B$22 -> 1,752,628 | F102: 112,157 | H102: ='Calc-costs Aus pop '!$B$32 -> 1,927,089 | I102: 123,322 | L102: 0 | N102: 0.06
A103: 95 | C103: 0 | E103: ='Calc-costs Aus pop '!$B$22 -> 1,752,628 | F103: 108,891 | H103: ='Calc-costs Aus pop '!$B$32 -> 1,927,089 | I103: 119,730 | L103: 0 | N103: 0.06
A104: 96 | C104: 0 | E104: ='Calc-costs Aus pop '!$B$22 -> 1,752,628 | F104: 105,719 | H104: ='Calc-costs Aus pop '!$B$32 -> 1,927,089 | I104: 116,243 | L104: 0 | N104: 0.06
A105: 97 | C105: 0 | E105: ='Calc-costs Aus pop '!$B$22 -> 1,752,628 | F105: 102,640 | H105: ='Calc-costs Aus pop '!$B$32 -> 1,927,089 | I105: 112,857 | L105: 0 | N105: 0.06
A106: 98 | C106: 0 | E106: ='Calc-costs Aus pop '!$B$22 -> 1,752,628 | F106: 99,650 | H106: ='Calc-costs Aus pop '!$B$32 -> 1,927,089 | I106: 109,570 | L106: 0 | N106: 0.06
A107: 99 | C107: 0 | F107: 0 | I107: 0 | L107: 0 | N107: 0.06
A108: 100 | C108: 0 | F108: 0 | I108: 0 | L108: 0 | N108: 0.05
